Workbook

Sheet 総括表
B1: 令和2年度 財政状況資料集
B2: 総括表（市町村）
B3: 都道府県名 | L3: 千葉県 | W3: 市町村類型 | AC3: Ⅲ－３ | AM3: 指定団体等の指定状況 | AY3: 区分 | BN3: 令和2年度(千円) | BV3: 令和元年度(千円) | CD3: 区分 | CT3: 令和2年度(千円･％) | DB3: 令和元年度(千円･％)
AY4: 歳入総額 | BN4: 58423698 | BV4: 36523287 | CD4: 実質収支比率 | CT4: 13.1 | DB4: 8.7
AM5: 財政健全化等 | AU5: × | AY5: 歳出総額 | BN5: 54724523 | BV5: 34291340 | CD5: 経常収支比率 | CT5: 86.8 | DB5: 87
B6: 市町村名 | L6: 印西市 | W6: 地方交付税種地 | AC6: 2-6 | AM6: 財源超過 | AU6: ○ | AY6: 歳入歳出差引 | BN6: 3699175 | BV6: 2231947 | CD6: (※1) | CT6: 86.8 | DB6: 87
AM7: 首都 | AU7: ○ | AY7: 翌年度に繰越すべき財源 | BN7: 701351 | BV7: 395529 | CD7: 標準財政規模 | CT7: 22907364 | DB7: 21219643
AM8: 近畿 | AU8: × | AY8: 実質収支 | BN8: 2997824 | BV8: 1836418 | CD8: 財政力指数 | CT8: 1.07 | DB8: 1.04
B9: 人口 | L9: 令和2年国調(人) | R9: 102609 | W9: 産業構造 (※5) | AM9: 中部 | AU9: × | AY9: 単年度収支 | BN9: 1161406 | BV9: -348450 | CD9: 公債費負担比率 | CT9: 5.1 | DB9: 6.8
L10: 平成27年国調(人) | R10: 92670 | AM10: 過疎 | AU10: × | AY10: 積立金 | BN10: 1002713 | BV10: 23690 | CD10: 健全化判断比率
L11: 増減率 (％) | R11: 10.7 | AM11: 山振 | AU11: × | AY11: 繰上償還金 | BN11: 0 | BV11: 0 | CD11: 実質赤字比率 | CT11: - | DB11: -
B12: 住民基本台帳人口 (※7) | L12: 令03.01.01(人) | R12: 105772 | W12: 区分 | AC12: 平成27年国調 | AH12: 平成22年国調 | AM12: 低開発 | AU12: × | AY12: 積立金取崩し額 | BN12: 2237288 | BV12: 0 | CD12: 連結実質赤字比率 | CT12: - | DB12: -
M13: うち日本人(人) | R13: 103405 | W13: 第1次 | AC13: 1799 | AH13: 1738 | AM13: 指数表選定 | AU13: ○ | AY13: 実質単年度収支 | BN13: -73169 | BV13: -324760 | CD13: 実質公債費比率 | CT13: 0.1 | DB13: 0.7
L14: 令02.01.01(人) | R14: 103513 | AC14: 4.1 | AH14: 4.2 | CD14: 将来負担比率 | CT14: - | DB14: -
M15: うち日本人(人) | R15: 101289 | W15: 第2次 | AC15: 7324 | AH15: 6615 | AY15: 基準財政収入額 | BN15: 17719804 | BV15: 16155809 | CD15: 資金不足比率 (※4)
L16: 増減率 (％) | R16: 2.2 | AC16: 16.9 | AH16: 16.1 | AY16: 基準財政需要額 | BN16: 16353876 | BV16: 15438858
M17: うち日本人(％) | R17: 2.1 | W17: 第3次 | AC17: 34308 | AH17: 32645 | AY17: 標準税収入額等 | BN17: 22907364 | BV17: 20952997
B18: 面積 (k㎡) | L18: 123.79 | AC18: 79 | AH18: 79.6 | AY18: 経常経費充当一般財源等 | BN18: 20265820 | BV18: 19462213
B19: 人口密度 (人/k㎡) | L19: 829 | AY19: 歳入一般財源等 | BN19: 33439869 | BV19: 26887281
B20: 世帯数 (世帯) | L20: 38349
B21: 職員の状況
B22: 特別職等 | E22: 区分 | L22: 定数 | Q22: 1人あたり平均 給料月額(百円) | W22: 一般職員等(※6) | Z22: 区分 | AH22: 職員数 (人) | AM22: 給料月額 (百円) | AS22: 1人あたり平均 給料月額(百円)
AY23: 地方債現在高 | BN23: 13368032 | BV23: 13462059
E24: 市区町村長 | L24: 1 | Q24: 8500 | Z24: 一般職員 | AH24: 610 | AM24: 1985550 | AS24: 3255 | AY24: うち公的資金 | BN24: 12426643 | BV24: 12439087
E25: 副市区町村長 | L25: 1 | Q25: 7100 | Z25: うち消防職員 | AH25: - | AM25: - | AS25: - | AY25: 債務負担行為額（支出予定額） | BN25: 9182104 | BV25: 7506384
E26: 教育長 | L26: 1 | Q26: 6830 | Z26: うち技能労務職員 | AH26: 10 | AM26: 29200 | AS26: 2920 | AY26: 収益事業収入 | BN26: - | BV26: -
E27: 議会議長 | L27: 1 | Q27: 4600 | Z27: 教育公務員 | AH27: 26 | AM27: 87642 | AS27: 3371 | AY27: 土地開発基金現在高 | BN27: 950000 | BV27: 950000
E28: 議会副議長 | L28: 1 | Q28: 3900 | Z28: 臨時職員 | AH28: - | AM28: - | AS28: - | AY28: 積立金 現在高 | BC28: 財政調整基金 | BN28: 9277603 | BV28: 10512178
E29: 議会議員 | L29: 20 | Q29: 3700 | Z29: 合計 | AH29: 636 | AM29: 2073192 | AS29: 3260 | BC29: 減債基金 | BN29: 103908 | BV29: 119650
W30: ラスパイレス指数 | AH30: 99.6 | BC30: その他特定目的基金 | BN30: 6533580 | BV30: 5741268
C32: 一般会計等の一覧 | U32: 事業会計の一覧 | AM32: 公営企業（法適）の一覧 | BE32: 公営企業（法非適）の一覧 | BW32: 関係する一部事務組合等一覧 | CO32: 地方公社・第三セクター等一覧
C33: 項番 | E33: 会計名 | U33: 項番 | W33: 会計名 | AM33: 項番 | AO33: 会計名 | BE33: 項番 | BG33: 会計名 | BW33: 項番 | BY33: 組合等名 | CO33: 項番 | CQ33: 団体名 | DG33: (※3)
C34: =IF(E34="","",1) -> 1 | E34: =IF('各会計、関係団体の財政状況及び健全化判断比率'!B7="","",'各会計、関係団体の財政状況及び健全化判断比率'!B7) -> 一般会計 | U34: =IF(W34="","",MAX(C34:D43)+1) -> 2 | W34: =IF('各会計、関係団体の財政状況及び健全化判断比率'!B28="","",'各会計、関係団体の財政状況及び健全化判断比率'!B28) -> 国民健康保険特別会計 | AM34: =IF(AO34="","",MAX(C34:D43,U34:V43)+1) -> 5 | AO34: =IF('各会計、関係団体の財政状況及び健全化判断比率'!B31="","",'各会計、関係団体の財政状況及び健全化判断比率'!B31) -> 水道事業会計 | BE34: =IF(BG34="","",MAX(C34:D43,U34:V43,AM34:AN43)+1) ->  | BW34: =IF(BY34="","",MAX(C34:D43,U34:V43,AM34:AN43,BE34:BF43)+1) -> 7 | BY34: =IF('各会計、関係団体の財政状況及び健全化判断比率'!B68="","",'各会計、関係団体の財政状況及び健全化判断比率'!B68) -> 千葉県市町村総合事務組合（一般会計） | CO34: =IF(CQ34="","",MAX(C34:D43,U34:V43,AM34:AN43,BE34:BF43,BW34:BX43)+1) ->  | CQ34: =IF('各会計、関係団体の財政状況及び健全化判断比率'!BS7="","",'各会計、関係団体の財政状況及び健全化判断比率'!BS7) ->  | DG34: =IF('各会計、関係団体の財政状況及び健全化判断比率'!BR7="","",'各会計、関係団体の財政状況及び健全化判断比率'!BR7) -> 
C35: =IF(E35="","",C34+1) ->  | E35: =IF('各会計、関係団体の財政状況及び健全化判断比率'!B8="","",'各会計、関係団体の財政状況及び健全化判断比率'!B8) ->  | U35: =IF(W35="","",U34+1) -> 3 | W35: =IF('各会計、関係団体の財政状況及び健全化判断比率'!B29="","",'各会計、関係団体の財政状況及び健全化判断比率'!B29) -> 介護保険特別会計 | AM35: =IF(AO35="","",AM34+1) -> 6 | AO35: =IF('各会計、関係団体の財政状況及び健全化判断比率'!B32="","",'各会計、関係団体の財政状況及び健全化判断比率'!B32) -> 下水道事業会計 | BE35: =IF(BG35="","",BE34+1) ->  | BW35: =IF(BY35="","",BW34+1) -> 8 | BY35: =IF('各会計、関係団体の財政状況及び健全化判断比率'!B69="","",'各会計、関係団体の財政状況及び健全化判断比率'!B69) -> 千葉県市町村総合事務組合（千葉県自治会館管理運営特別会計） | CO35: =IF(CQ35="","",CO34+1) ->  | CQ35: =IF('各会計、関係団体の財政状況及び健全化判断比率'!BS8="","",'各会計、関係団体の財政状況及び健全化判断比率'!BS8) ->  | DG35: =IF('各会計、関係団体の財政状況及び健全化判断比率'!BR8="","",'各会計、関係団体の財政状況及び健全化判断比率'!BR8) -> 
C36: =IF(E36="","",C35+1) ->  | E36: =IF('各会計、関係団体の財政状況及び健全化判断比率'!B9="","",'各会計、関係団体の財政状況及び健全化判断比率'!B9) ->  | U36: =IF(W36="","",U35+1) -> 4 | W36: =IF('各会計、関係団体の財政状況及び健全化判断比率'!B30="","",'各会計、関係団体の財政状況及び健全化判断比率'!B30) -> 後期高齢者医療特別会計 | BW36: 9 | BY36: =IF('各会計、関係団体の財政状況及び健全化判断比率'!B70="","",'各会計、関係団体の財政状況及び健全化判断比率'!B70) -> 千葉県市町村総合事務組合（千葉県自治研修センター特別会計） | CQ36: =IF('各会計、関係団体の財政状況及び健全化判断比率'!BS9="","",'各会計、関係団体の財政状況及び健全化判断比率'!BS9) ->  | DG36: =IF('各会計、関係団体の財政状況及び健全化判断比率'!BR9="","",'各会計、関係団体の財政状況及び健全化判断比率'!BR9) -> 
C37: =IF(E37="","",C36+1) ->  | E37: =IF('各会計、関係団体の財政状況及び健全化判断比率'!B10="","",'各会計、関係団体の財政状況及び健全化判断比率'!B10) ->  | BW37: 10 | BY37: =IF('各会計、関係団体の財政状況及び健全化判断比率'!B71="","",'各会計、関係団体の財政状況及び健全化判断比率'!B71) -> 千葉県市町村総合事務組合（千葉県市町村交通災害共済特別会計） | CQ37: =IF('各会計、関係団体の財政状況及び健全化判断比率'!BS10="","",'各会計、関係団体の財政状況及び健全化判断比率'!BS10) ->  | DG37: =IF('各会計、関係団体の財政状況及び健全化判断比率'!BR10="","",'各会計、関係団体の財政状況及び健全化判断比率'!BR10) -> 
C38: =IF(E38="","",C37+1) ->  | E38: =IF('各会計、関係団体の財政状況及び健全化判断比率'!B11="","",'各会計、関係団体の財政状況及び健全化判断比率'!B11) ->  | BW38: 11 | BY38: =IF('各会計、関係団体の財政状況及び健全化判断比率'!B72="","",'各会計、関係団体の財政状況及び健全化判断比率'!B72) -> 千葉県後期高齢者医療広域連合（一般会計） | CQ38: =IF('各会計、関係団体の財政状況及び健全化判断比率'!BS11="","",'各会計、関係団体の財政状況及び健全化判断比率'!BS11) ->  | DG38: =IF('各会計、関係団体の財政状況及び健全化判断比率'!BR11="","",'各会計、関係団体の財政状況及び健全化判断比率'!BR11) -> 
E39: =IF('各会計、関係団体の財政状況及び健全化判断比率'!B12="","",'各会計、関係団体の財政状況及び健全化判断比率'!B12) ->  | BW39: 12 | BY39: =IF('各会計、関係団体の財政状況及び健全化判断比率'!B73="","",'各会計、関係団体の財政状況及び健全化判断比率'!B73) -> 千葉県後期高齢者医療広域連合（後期高齢者医療特別会計） | CQ39: =IF('各会計、関係団体の財政状況及び健全化判断比率'!BS12="","",'各会計、関係団体の財政状況及び健全化判断比率'!BS12) ->  | DG39: =IF('各会計、関係団体の財政状況及び健全化判断比率'!BR12="","",'各会計、関係団体の財政状況及び健全化判断比率'!BR12) -> 
E40: =IF('各会計、関係団体の財政状況及び健全化判断比率'!B13="","",'各会計、関係団体の財政状況及び健全化判断比率'!B13) ->  | BW40: 13 | BY40: =IF('各会計、関係団体の財政状況及び健全化判断比率'!B74="","",'各会計、関係団体の財政状況及び健全化判断比率'!B74) -> 印西地区消防組合（一般会計） | CQ40: =IF('各会計、関係団体の財政状況及び健全化判断比率'!BS13="","",'各会計、関係団体の財政状況及び健全化判断比率'!BS13) ->  | DG40: =IF('各会計、関係団体の財政状況及び健全化判断比率'!BR13="","",'各会計、関係団体の財政状況及び健全化判断比率'!BR13) -> 
E41: =IF('各会計、関係団体の財政状況及び健全化判断比率'!B14="","",'各会計、関係団体の財政状況及び健全化判断比率'!B14) ->  | BW41: 14 | BY41: =IF('各会計、関係団体の財政状況及び健全化判断比率'!B75="","",'各会計、関係団体の財政状況及び健全化判断比率'!B75) -> 印西地区衛生組合（一般会計） | CQ41: =IF('各会計、関係団体の財政状況及び健全化判断比率'!BS14="","",'各会計、関係団体の財政状況及び健全化判断比率'!BS14) ->  | DG41: =IF('各会計、関係団体の財政状況及び健全化判断比率'!BR14="","",'各会計、関係団体の財政状況及び健全化判断比率'!BR14) -> 
E42: =IF('各会計、関係団体の財政状況及び健全化判断比率'!B15="","",'各会計、関係団体の財政状況及び健全化判断比率'!B15) ->  | BW42: 15 | BY42: =IF('各会計、関係団体の財政状況及び健全化判断比率'!B76="","",'各会計、関係団体の財政状況及び健全化判断比率'!B76) -> 印旛利根川水防事務組合（一般会計） | CQ42: =IF('各会計、関係団体の財政状況及び健全化判断比率'!BS15="","",'各会計、関係団体の財政状況及び健全化判断比率'!BS15) ->  | DG42: =IF('各会計、関係団体の財政状況及び健全化判断比率'!BR15="","",'各会計、関係団体の財政状況及び健全化判断比率'!BR15) -> 
E43: =IF('各会計、関係団体の財政状況及び健全化判断比率'!B16="","",'各会計、関係団体の財政状況及び健全化判断比率'!B16) ->  | BW43: 16 | BY43: =IF('各会計、関係団体の財政状況及び健全化判断比率'!B77="","",'各会計、関係団体の財政状況及び健全化判断比率'!B77) -> 印西地区環境整備事業組合（一般会計） | CQ43: =IF('各会計、関係団体の財政状況及び健全化判断比率'!BS16="","",'各会計、関係団体の財政状況及び健全化判断比率'!BS16) ->  | DG43: =IF('各会計、関係団体の財政状況及び健全化判断比率'!BR16="","",'各会計、関係団体の財政状況及び健全化判断比率'!BR16) -> 
B46: （注釈） | E46: ※1：経常収支比率の( )内の数値は、令和元年度は「減収補塡債（特例分）」及び「臨時財政対策債」を、令和2年度は「減収補塡債（特例分）」「猶予特例債」及び「臨時財政対策債」を除いて算出したものである。
E47: ※2：各会計の一覧は主な会計（10会計まで）を記載している。
E48: ※3：地方公共団体が損失補塡等を行っている出資法人で、健全化法の算出対象となっている団体については、「地方公社・第三セクター等」の団体名に○印を付与している。
E49: ※4：資金不足比率欄には、資金が不足している会計のみ記載している。
E50: ※5：産業構造の比率は、分母を就業人口総数とし、分類不能の産業を除いて算出。
E51: ※6：個人情報保護の観点から、対象となる職員数が1人又は2人の場合は、｢給料月額(百円)｣と｢一人当たり給料月額（百円）｣を｢アスタリスク（＊）｣としている。（その他、数値のない欄については、すべてハイフン（－）としている）。
E52: ※7：人口については、調査対象年度の1月1日現在の住民基本台帳に登載されている人口に基づいている。

Sheet 普通会計の状況
DH1: 令和2年度 | DP1: 千葉県印西市
B2: (1) 普通会計の状況（市町村）
B3: 歳入の状況（単位 千円・％） | AP3: 地方税の状況（単位 千円・％） | CD3: 歳出の状況（単位 千円・％）
B4: 区分 | R4: 決算額 | Z4: 構成比 | AD4: 経常一般財源等 | AL4: 構成比 | AP4: 区分 | BG4: 収入済額 | BO4: 構成比 | BS4: 超過課税分 | CD4: 目的別歳出の状況（単位 千円・％）
B5: 地方税 | R5: 21477597 | Z5: 36.8 | AD5: 19929402 | AL5: 85.4 | AP5: 普通税 | BG5: 19929402 | BO5: 92.8 | BS5: - | CD5: 区分 | CR5: 決算額 (A) | CZ5: 構成比 | DD5: (A)のうち普通建設事業費 | DQ5: (A)のうち充当一般財源等
B6: 地方譲与税 | R6: 356096 | Z6: 0.6 | AD6: 356096 | AL6: 1.5 | AP6: 法定普通税 | BG6: 19929402 | BO6: 92.8 | BS6: - | CD6: 議会費 | CR6: 303226 | CZ6: 0.6 | DD6: 42554 | DQ6: 303226
B7: 利子割交付金 | R7: 12520 | Z7: 0 | AD7: 12520 | AL7: 0.1 | AP7: 市町村民税 | BG7: 7900791 | BO7: 36.8 | BS7: - | CD7: 総務費 | CR7: 21246742 | CZ7: 38.8 | DD7: 1154758 | DQ7: 6482829
B8: 配当割交付金 | R8: 75077 | Z8: 0.1 | AD8: 75077 | AL8: 0.3 | AP8: 個人均等割 | BG8: 183332 | BO8: 0.9 | BS8: - | CD8: 民生費 | CR8: 14496681 | CZ8: 26.5 | DD8: 449589 | DQ8: 7521613
B9: 株式等譲渡所得割交付金 | R9: 91629 | Z9: 0.2 | AD9: 91629 | AL9: 0.4 | AP9: 所得割 | BG9: 6650537 | BO9: 31 | BS9: - | CD9: 衛生費 | CR9: 3474630 | CZ9: 6.3 | DD9: 93350 | DQ9: 3275252
B10: 分離課税所得割交付金 | R10: - | Z10: - | AD10: - | AL10: - | AP10: 法人均等割 | BG10: 297183 | BO10: 1.4 | BS10: - | CD10: 労働費 | CR10: - | CZ10: - | DD10: - | DQ10: -
B11: 地方消費税交付金 | R11: 1946205 | Z11: 3.3 | AD11: 1946205 | AL11: 8.3 | AP11: 法人税割 | BG11: 769739 | BO11: 3.6 | BS11: - | CD11: 農林水産業費 | CR11: 426517 | CZ11: 0.8 | DD11: 4075 | DQ11: 245410
B12: ゴルフ場利用税交付金 | R12: 121706 | Z12: 0.2 | AD12: 121706 | AL12: 0.5 | AP12: 固定資産税 | BG12: 11270032 | BO12: 52.5 | BS12: - | CD12: 商工費 | CR12: 819921 | CZ12: 1.5 | DD12: - | DQ12: 93898
B13: 特別地方消費税交付金 | R13: - | Z13: - | AD13: - | AL13: - | AP13: うち純固定資産税 | BG13: 11193527 | BO13: 52.1 | BS13: - | CD13: 土木費 | CR13: 2741143 | CZ13: 5 | DD13: 990255 | DQ13: 2278670
B14: 自動車取得税交付金 | R14: 10 | Z14: 0 | AD14: 10 | AL14: 0 | AP14: 軽自動車税 | BG14: 192990 | BO14: 0.9 | BS14: - | CD14: 消防費 | CR14: 1946067 | CZ14: 3.6 | DD14: 79583 | DQ14: 1919601
B15: 軽油引取税交付金 | R15: - | Z15: - | AD15: - | AL15: - | AP15: 市町村たばこ税 | BG15: 565589 | BO15: 2.6 | BS15: - | CD15: 教育費 | CR15: 7550677 | CZ15: 13.8 | DD15: 2443162 | DQ15: 5920354
B16: 自動車税環境性能割交付金 | R16: 43767 | Z16: 0.1 | AD16: 43767 | AL16: 0.2 | AP16: 鉱産税 | BG16: - | BO16: - | BS16: - | CD16: 災害復旧費 | CR16: 19078 | CZ16: 0 | DD16: - | DQ16: -
B17: 法人事業税交付金 | R17: 126377 | Z17: 0.2 | AD17: 126377 | AL17: 0.5 | AP17: 特別土地保有税 | BG17: - | BO17: - | BS17: - | CD17: 公債費 | CR17: 1699841 | CZ17: 3.1 | DD17: - | DQ17: 1699841
B18: 地方特例交付金 | R18: 214334 | Z18: 0.4 | AD18: 214334 | AL18: 0.9 | AP18: 法定外普通税 | BG18: - | BO18: - | BS18: - | CD18: 諸支出金 | CR18: - | CZ18: - | DD18: - | DQ18: -
B19: 個人住民税減収補塡特例交付金 | R19: 188783 | Z19: 0.3 | AD19: 188783 | AL19: 0.8 | AP19: 目的税 | BG19: 1548195 | BO19: 7.2 | BS19: - | CD19: 前年度繰上充用金 | CR19: - | CZ19: - | DD19: - | DQ19: -
B20: 自動車税減収補塡特例交付金 | R20: 20742 | Z20: 0 | AD20: 20742 | AL20: 0.1 | AP20: 法定目的税 | BG20: 1548195 | BO20: 7.2 | BS20: - | CD20: 歳出合計 | CR20: 54724523 | CZ20: 100 | DD20: 5257326 | DQ20: 29740694
B21: 軽自動車税減収補塡特例交付金 | R21: 4809 | Z21: 0 | AD21: 4809 | AL21: 0 | AP21: 入湯税 | BG21: - | BO21: - | BS21: -
B22: 地方交付税 | R22: 123427 | Z22: 0.2 | AD22: - | AL22: - | AP22: 事業所税 | BG22: - | BO22: - | BS22: - | CD22: 性質別歳出の状況（単位 千円・％）
B23: 普通交付税 | R23: - | Z23: - | AD23: - | AL23: - | AP23: 都市計画税 | BG23: 1548195 | BO23: 7.2 | BS23: - | CD23: 区分 | CR23: 決算額 | CZ23: 構成比 | DD23: 充当一般財源等 | DL23: 経常経費充当一般財源等 | DW23: 経常収支比率
B24: 特別交付税 | R24: 117366 | Z24: 0.2 | AD24: - | AL24: - | AP24: 水利地益税等 | BG24: - | BO24: - | BS24: - | CD24: 義務的経費計 | CR24: 17806039 | CZ24: 32.5 | DD24: 10672573 | DL24: 10012241 | DW24: 42.9
B25: 震災復興特別交付税 | R25: 6061 | Z25: 0 | AD25: - | AL25: - | AP25: 法定外目的税 | BG25: - | BO25: - | BS25: - | CD25: 人件費 | CR25: 6163712 | CZ25: 11.3 | DD25: 5458788 | DL25: 5421258 | DW25: 23.2
B26: (一般財源計) | R26: 24588745 | Z26: 42.1 | AD26: 22917123 | AL26: 98.2 | AP26: 旧法による税 | BG26: - | BO26: - | BS26: - | CD26: うち職員給 | CR26: 4278480 | CZ26: 7.8 | DD26: 3668927 | DL26: - | DW26: -
B27: 交通安全対策特別交付金 | R27: 12293 | Z27: 0 | AD27: 12293 | AL27: 0.1 | AP27: 合計 | BG27: 21477597 | BO27: 100 | BS27: - | CD27: 扶助費 | CR27: 9942486 | CZ27: 18.2 | DD27: 3513944 | DL27: 2891142 | DW27: 12.4
B28: 分担金・負担金 | R28: 61587 | Z28: 0.1 | AD28: 20904 | AL28: 0.1 | CD28: 公債費 | CR28: 1699841 | CZ28: 3.1 | DD28: 1699841 | DL28: 1699841 | DW28: 7.3
B29: 使用料 | R29: 451658 | Z29: 0.8 | AD29: 352104 | AL29: 1.5 | CD29: 内訳 | CF29: 元利償還金 | CR29: 1699841 | CZ29: 3.1 | DD29: 1699841 | DL29: 1699841 | DW29: 7.3
B30: 手数料 | R30: 66029 | Z30: 0.1 | AD30: - | AL30: - | AP30: 区分 | BG30: 令和2年度 | BR30: 令和元年度 | CF30: うち元金 | CR30: 1594727 | CZ30: 2.9 | DD30: 1594727 | DL30: 1594727 | DW30: 6.8
B31: 国庫支出金 | R31: 17586055 | Z31: 30.1 | AD31: - | AL31: - | AP31: 徴収率 (％) | AT31: 現年 | AX31: 合計 | BG31: 99.2 | BM31: 97.6 | BR31: 99.1 | BX31: 97.4 | CF31: うち利子 | CR31: 105114 | CZ31: 0.2 | DD31: 105114 | DL31: 105114 | DW31: 0.5
B32: 国有提供交付金(特別区財調交付金) | R32: - | Z32: - | AD32: - | AL32: - | AU32: ・計 | AX32: 市町村民税 | BG32: 98.9 | BM32: 97.1 | BR32: 98.8 | BX32: 97.2 | CF32: 一時借入金利子 | CR32: - | CZ32: - | DD32: - | DL32: - | DW32: -
B33: 都道府県支出金 | R33: 2908563 | Z33: 5 | AD33: - | AL33: - | AX33: 純固定資産税 | BG33: 99.4 | BM33: 97.9 | BR33: 99.2 | BX33: 97.6 | CD33: その他の経費 | CR33: 31642080 | CZ33: 57.8 | DD33: 16063609 | DL33: 10253579 | DW33: 43.9
B34: 財産収入 | R34: 38299 | Z34: 0.1 | AD34: 33480 | AL34: 0.1 | CD34: 物件費 | CR34: 6760686 | CZ34: 12.4 | DD34: 5431762 | DL34: 4339170 | DW34: 18.6
B35: 寄附金 | R35: 56345 | Z35: 0.1 | AD35: - | AL35: - | AQ35: 公営事業等への繰出 | BG35: 国民健康保険事業会計の状況 | CD35: 維持補修費 | CR35: 174893 | CZ35: 0.3 | DD35: 171284 | DL35: 170899 | DW35: 0.7
B36: 繰入金 | R36: 7037064 | Z36: 12 | AD36: - | AL36: - | AQ36: 合計 | AZ36: 2695915 | BG36: 実質収支 | BV36: 87410 | CD36: 補助費等 | CR36: 15802088 | CZ36: 28.9 | DD36: 4997528 | DL36: 3955453 | DW36: 16.9
B37: 繰越金 | R37: 2231947 | Z37: 3.8 | AD37: - | AL37: - | AQ37: 下水道 | AZ37: 237375 | BG37: 再差引収支 | BV37: 56214 | CD37: うち一部事務組合負担金 | CR37: 3124692 | CZ37: 5.7 | DD37: 3124692 | DL37: 2945670 | DW37: 12.6
B38: 諸収入 | R38: 1884413 | Z38: 3.2 | AD38: 12665 | AL38: 0.1 | AQ38: 上水道 | AZ38: 187931 | BG38: 加入世帯数(世帯) | BV38: 12044 | CD38: 繰出金 | CR38: 2270609 | CZ38: 4.1 | DD38: 1846481 | DL38: 1788057 | DW38: 7.7
B39: 地方債 | R39: 1500700 | Z39: 2.6 | AD39: - | AL39: - | AQ39: 工業用水道 | AZ39: - | BG39: 被保険者数(人) | BV39: 19416 | CD39: 積立金 | CR39: 6569059 | CZ39: 12 | DD39: 3576809 | DL39: - | DW39: -
B40: うち減収補塡債(特例分) | R40: - | Z40: - | AD40: - | AL40: - | AQ40: 交通 | AZ40: - | BG40: 被保険者 1人当り | BM40: 保険税(料)収入額 | BV40: 106 | CD40: 投資・出資金・貸付金 | CR40: 64745 | CZ40: 0.1 | DD40: 39745 | DL40: - | DW40: -
B41: うち猶予特例債 | R41: - | Z41: - | AD41: - | AL41: - | AQ41: 国民健康保険 | AZ41: 573664 | BM41: 国庫支出金 | BV41: - | CD41: 前年度繰上充用金 | CR41: - | CZ41: - | DD41: -
B42: うち臨時財政対策債 | R42: - | Z42: - | AD42: - | AL42: - | AQ42: その他 | AZ42: 1696945 | BM42: 保険給付費 | BV42: 309 | CD42: 投資的経費計 | CR42: 5276404 | CZ42: 9.6 | DD42: 3004512
B43: 歳入合計 | R43: 58423698 | Z43: 100 | AD43: 23348569 | AL43: 100 | CD43: うち人件費 | CR43: 157710 | CZ43: 0.3 | DD43: 157710
CD44: 内訳 | CF44: 普通建設事業費 | CR44: 5257326 | CZ44: 9.6 | DD44: 3004512
B45: (注釈) | CF45: うち補助 | CR45: 1044783 | CZ45: 1.9 | DD45: 522887
B46: 普通建設事業費の補助事業費には受託事業費のうちの補助事業費を含み、 | CF46: うち単独 | CR46: 4199780 | CZ46: 7.7 | DD46: 2473506
B47: 単独事業費には同級他団体施行事業負担金及び受託事業費のうちの単独事業費を含む。 | CF47: 災害復旧事業費 | CR47: 19078 | CZ47: 0 | DD47: -
CF48: 失業対策事業費 | CR48: - | CZ48: - | DD48: -
CD49: 歳出合計 | CR49: 54724523 | CZ49: 100 | DD49: 29740694

Sheet 各会計、関係団体の財政状況及び健全化判断比率
A2: (2)各会計、関係団体の財政状況及び健全化判断比率（市町村） | DJ2: 令和2年度 | DQ2: 千葉県印西市
A4: 一般会計等の財政状況（単位：百万円） | BQ4: 地方公社・第三セクター等の経営状況及び地方公共団体の財政的支援の状況（単位：百万円）
A5: 会計名 | Q5: 歳入 | V5: 歳出 | AA5: 形式収支 | AF5: 実質収支 | AK5: 他会計等 からの 繰入金 | AP5: 地方債 現在高 | AU5: 備考 | BQ5: 地方公社・第三セクター等名 | CH5: 経常損益 | CM5: 純資産又は 正味財産 | CR5: 当該団体 からの 出資金 | CW5: 当該団体 からの 補助金 | DB5: 当該団体 からの 貸付金 | DG5: 当該団体からの債務保証に係る債務残高 | DL5: 当該団体からの損失補償に係る債務残高 | DQ5: 一般会計等 負担見込額 | DV5: 備考
A7: 1 | B7: 一般会計 | Q7: 58431 | V7: 54732 | AA7: 3699 | AF7: 2998 | AK7: 7037 | AP7: 13368 | BQ7: 1
A8: 2 | BQ8: 2
A9: 3 | BQ9: 3
A10: 4 | BQ10: 4
A11: 5 | BQ11: 5
A12: 6 | BQ12: 6
A13: 7 | BQ13: 7
A14: 8 | BQ14: 8
A15: 9 | BQ15: 9
A16: 10 | BQ16: 10
A17: 11 | BQ17: 11
A18: 12 | BQ18: 12
A19: 13 | BQ19: 13
A20: 14 | BQ20: 14
A21: 15 | BQ21: 15
A22: 16 | AZ22: 実質赤字額 | BQ22: 16
A23: 計 | B23: 一般会計等（純計） | Q23: 58431 | V23: 54732 | AA23: 3699 | AF23: 2998 | AP23: 13368 | AZ23: - | BQ23: 17
A24: ※一般会計等（純計）は、各会計の相互間の繰入・繰出等の重複を控除したものであり、各会計の合計と一致しない場合がある。 | BQ24: 18
A25: 公営企業会計等の財政状況（単位：百万円） | BQ25: 19
A26: 会計名 | Q26: 総収益 （歳入） | V26: 総費用 （歳出） | AA26: 純損益 （形式収支） | AF26: 資金剰余額 /不足額 （実質収支） | AK26: 他会計等 からの 繰入金 | AP26: 企業債 （地方債） 現在高 | AU26: 左のうち 一般会計等 繰入見込額 | AZ26: 資金不足 比率 | BE26: 備考 | BQ26: 20
BQ27: 21
A28: 1 | B28: 国民健康保険特別会計 | Q28: 8749 | V28: 8662 | AA28: 87 | AF28: 87 | AK28: 497 | AP28: - | AU28: - | AZ28: - | BQ28: 22
A29: 2 | B29: 介護保険特別会計 | Q29: 5504 | V29: 5213 | AA29: 291 | AF29: 291 | AK29: 730 | AP29: - | AU29: - | AZ29: - | BQ29: 23
A30: 3 | B30: 後期高齢者医療特別会計 | Q30: 927 | V30: 907 | AA30: 20 | AF30: 20 | AK30: 156 | AP30: - | AU30: - | AZ30: - | BQ30: 24
A31: 4 | B31: 水道事業会計 | Q31: 643 | V31: 587 | AA31: 56 | AF31: 1866 | AK31: 181 | AP31: 201 | AU31: 147 | AZ31: - | BE31: 法適用企業 | BQ31: 25
A32: 5 | B32: 下水道事業会計 | Q32: 2983 | V32: 2793 | AA32: 190 | AF32: 1361 | AK32: 237 | AP32: 2156 | AU32: 1115 | AZ32: - | BE32: 法適用企業 | BQ32: 26
A33: 6 | BQ33: 27
A34: 7 | BQ34: 28
A35: 8 | BQ35: 29
A36: 9 | BQ36: 30
A37: 10 | BQ37: 31
A38: 11 | BQ38: 32
A39: 12 | BQ39: 33
A40: 13 | BQ40: 34
A41: 14 | BQ41: 35
A42: 15 | BQ42: 36
A43: 16 | BQ43: 37
A44: 17 | BQ44: 38
A45: 18 | BQ45: 39
A46: 19 | BQ46: 40
A47: 20 | BQ47: 41
A48: 21 | BQ48: 42
A49: 22 | BQ49: 43
A50: 23 | BQ50: 44
A51: 24 | BQ51: 45
A52: 25 | BQ52: 46
A53: 26 | BQ53: 47
A54: 27 | BQ54: 48
A55: 28 | BQ55: 49
A56: 29 | BQ56: 50
A57: 30 | BQ57: 51
A58: 31 | BQ58: 52
A59: 32 | BQ59: 53
A60: 33 | BQ60: 54
A61: 34 | BQ61: 55
A62: 35 | BJ62: 連結実質赤字額 | BQ62: 56
A63: 計 | B63: 公営企業会計等 | AF63: 3625 | AP63: 2357 | AU63: 1262 | BJ63: - | BQ63: 57
BQ64: 58
A65: 関係する一部事務組合等の財政状況（単位：百万円） | BQ65: 59
A66: 一部事務組合等名 | Q66: 総収益 （歳入） | V66: 総費用 （歳出） | AA66: 純損益 （形式収支） | AF66: 資金剰余額 /不足額 （実質収支） | AK66: 他会計等 からの 繰入金 | AP66: 企業債 （地方債） 現在高 | AU66: 左のうち 一般会計等 負担見込額 | AZ66: 備考 | BQ66: 60
BQ67: 61
A68: 1 | B68: 千葉県市町村総合事務組合（一般会計） | Q68: 21968 | V68: 21813 | AA68: 155 | AF68: 155 | AK68: 90 | AP68: - | AU68: - | BQ68: 62
A69: 2 | B69: 千葉県市町村総合事務組合（千葉県自治会館管理運営特別会計） | Q69: 192 | V69: 133 | AA69: 58 | AF69: 58 | AK69: - | AP69: - | AU69: - | BQ69: 63
A70: 3 | B70: 千葉県市町村総合事務組合（千葉県自治研修センター特別会計） | Q70: 76 | V70: 71 | AA70: 5 | AF70: 5 | AK70: 1 | AP70: - | AU70: - | BQ70: 64
A71: 4 | B71: 千葉県市町村総合事務組合（千葉県市町村交通災害共済特別会計） | Q71: 111 | V71: 74 | AA71: 38 | AF71: 38 | AK71: - | AP71: - | AU71: - | BQ71: 65
A72: 5 | B72: 千葉県後期高齢者医療広域連合（一般会計） | Q72: 2548 | V72: 2213 | AA72: 335 | AF72: 335 | AK72: 138 | AP72: - | AU72: - | BQ72: 66
A73: 6 | B73: 千葉県後期高齢者医療広域連合（後期高齢者医療特別会計） | Q73: 659115 | V73: 635247 | AA73: 23868 | AF73: 23868 | AK73: 3257 | AP73: - | AU73: - | BQ73: 67
A74: 7 | B74: 印西地区消防組合（一般会計） | Q74: 2973 | V74: 2894 | AA74: 79 | AF74: 78 | AK74: - | AP74: 2464 | AU74: 1605 | BQ74: 68
A75: 8 | B75: 印西地区衛生組合（一般会計） | Q75: 190 | V75: 181 | AA75: 9 | AF75: 9 | AK75: - | AP75: 5 | AU75: 4 | BQ75: 69
A76: 9 | B76: 印旛利根川水防事務組合（一般会計） | Q76: 17 | V76: 14 | AA76: 3 | AF76: 3 | AK76: 5 | AP76: - | AU76: - | BQ76: 70
A77: 10 | B77: 印西地区環境整備事業組合（一般会計） | Q77: 2835 | V77: 2697 | AA77: 138 | AF77: 83 | AK77: - | AP77: - | AU77: - | BQ77: 71
A78: 11 | B78: 印西地区環境整備事業組合（一般会計）（ごみ処理）次期分 | Q78: 150 | V78: 95 | AA78: 55 | AF78: - | AK78: - | AP78: 94 | AU78: 53 | BQ78: 72
A79: 12 | B79: 印西地区環境整備事業組合（一般会計）（ごみ処理）次期分除く | Q79: 2384 | V79: 2316 | AA79: 68 | AF79: - | AK79: - | AP79: 1049 | AU79: 578 | BQ79: 73
A80: 13 | B80: 印西地区環境整備事業組合（一般会計）（平岡自然公園分） | Q80: 301 | V80: 286 | AA80: 15 | AF80: - | AK80: - | AP80: 116 | AU80: 72 | BQ80: 74
A81: 14 | B81: 印西地区環境整備事業組合（墓地事業特別会計） | Q81: 78 | V81: 74 | AA81: 4 | AF81: 4 | AK81: - | AP81: - | AU81: - | BQ81: 75
A82: 15 | B82: 印旛郡市広域市町村圏事務組合（一般会計） | Q82: 180 | V82: 175 | AA82: 5 | AF82: 5 | AK82: 17 | AP82: - | AU82: - | BQ82: 76
A83: 16 | B83: 印旛郡市広域市町村圏事務組合（水道用水供給事業会計） | Q83: 3717 | V83: 3515 | AA83: 202 | AF83: 5054 | AK83: - | AP83: 3358 | AU83: - | BQ83: 77
A84: 17 | B84: 長門川水道企業団（水道事業会計） | Q84: 539 | V84: 430 | AA84: 109 | AF84: 752 | AK84: 2 | AP84: - | AU84: - | BQ84: 78
A85: 18 | BQ85: 79
A86: 19 | BQ86: 80
A87: 20 | BQ87: 81
A88: 計 | B88: 一部事務組合等 | AF88: 30447 | AP88: 7086 | AU88: 2312 | BQ88: 82
BQ89: 83
BQ90: 84
BQ91: 85
BQ92: 86
BQ93: 87
BQ94: 88
BQ95: 89
BQ96: 90
BQ97: 91
BQ98: 92
BQ99: 93
BQ100: 94
BQ101: 95
BQ102: 計 | BR102: 地方公社・第三セクター等
BQ103: ※地方公共団体が①25%以上出資している法人又は②財政支援を行っている法人を記載している。
BQ104: ※地方公共団体財政健全化法に基づき将来負担比率の算定対象となっている法人については、○印を付与している。
A107: 公債費負担の状況 | AU107: 将来負担の状況
A108: 実質公債費比率 （千円・％） | AU108: 将来負担比率 （千円・％）
A109: 区分 | AA109: 平成30年度 | AF109: 令和元年度 | AK109: 令和2年度 | AP109: 分母比 | AU109: 区分 | BQ109: 平成30年度 | BV109: 令和元年度 | CA109: 令和2年度 | CF109: 分母比 | CK109: 内訳 | DG109: 平成30年度 | DL109: 令和元年度 | DQ109: 令和2年度 | DV109: 分母比
A110: 元利償還金 | AA110: 1928413 | AF110: 1707334 | AK110: 1594727 | AP110: 7.4 | AU110: 将来負担額 | AZ110: 一般会計等に係る地方債の現在高 | BQ110: 14547393 | BV110: 13462059 | CA110: 13368032 | CF110: 62.3 | CK110: 債務負担行為 | CM110: PFI事業に係るもの | DG110: - | DL110: - | DQ110: - | DV110: -
A111: 減債基金積立不足算定額 | AA111: - | AF111: - | AK111: - | AP111: - | AZ111: 債務負担行為に基づく支出予定額 | BQ111: 6624146 | BV111: 5547464 | CA111: 5175420 | CF111: 24.1 | CM111: いわゆる五省協定等に係るもの | DG111: 4768796 | DL111: 3701611 | DQ111: 3188154 | DV111: 14.8
A112: 準元利償還金 | C112: 満期一括償還地方債に係る年度割相当額 | AA112: - | AF112: - | AK112: - | AP112: - | AZ112: 公営企業債等繰入見込額 | BQ112: 1267429 | BV112: 1691180 | CA112: 1261550 | CF112: 5.9 | CM112: 国営土地改良事業に係るもの | DG112: 1789469 | DL112: 1845853 | DQ112: 1940279 | DV112: 9
C113: 公営企業債の元利償還金 に対する繰入金 | AA113: 173442 | AF113: 161198 | AK113: 56382 | AP113: 0.3 | AZ113: 組合等負担等見込額 | BQ113: 2618914 | BV113: 2127290 | CA113: 2312480 | CF113: 10.8 | CM113: 森林総合研究所等が行う事業に係るもの | DG113: 65781 | DL113: - | DQ113: 46987 | DV113: 0.2
C114: 組合等が起こした地方債の元利 償還金に対する負担金等 | AA114: 223090 | AF114: 255593 | AK114: 300235 | AP114: 1.4 | AZ114: 退職手当負担見込額 | BQ114: 3185909 | BV114: 3277057 | CA114: 3421575 | CF114: 15.9 | CM114: 地方公務員等共済組合に係るもの | DG114: - | DL114: - | DQ114: - | DV114: -
C115: 債務負担行為に基づく支出額（公債費に準ずるもの） | AA115: 865362 | AF115: 829906 | AK115: 769543 | AP115: 3.6 | AZ115: 設立法人等の負債額等負担見込額 | BQ115: - | BV115: - | CA115: - | CF115: - | CM115: 依頼土地の買い戻しに係るもの | DG115: - | DL115: - | DQ115: - | DV115: -
C116: 一時借入金の利子 | AA116: - | AF116: - | AK116: - | AP116: - | AZ116: うち、健全化法施行規則附則第三条に係る負担見込額 | BQ116: - | BV116: - | CA116: - | CF116: - | CM116: 社会福祉法人の施設建設費に係るもの | DG116: - | DL116: - | DQ116: - | DV116: -
A117: 合計 | Y117: (Ａ) | AA117: 3190307 | AF117: 2954031 | AK117: 2720887 | AZ117: 連結実質赤字額 | BQ117: - | BV117: - | CA117: - | CF117: - | CM117: 損失補償・債務保証の履行に係るもの | DG117: - | DL117: - | DQ117: - | DV117: -
A118: 内訳 | AA118: 平成30年度 | AF118: 令和元年度 | AK118: 令和2年度 | AP118: 分母比 | AZ118: 組合等連結実質赤字額負担見込額 | BQ118: - | BV118: - | CA118: - | CF118: - | CM118: 引き受けた債務の履行に係るもの | DG118: - | DL118: - | DQ118: - | DV118: -
A119: 債務負担行為 | C119: PFI事業に係るもの | AA119: - | AF119: - | AK119: - | AP119: - | AZ119: 合計 | BO119: (Ｅ) | BQ119: 28243791 | BV119: 26105050 | CA119: 25539057 | CM119: その他上記に準ずるもの | DG119: 100 | DL119: - | DQ119: - | DV119: -
C120: いわゆる五省協定等に係るもの | AA120: 855948 | AF120: 820497 | AK120: 760146 | AP120: 3.5 | AU120: 充当可能 財源等 | AZ120: 充当可能基金 | BQ120: 16296140 | BV120: 18175044 | CA120: 17020996 | CF120: 79.3 | CK120: 企業債等 繰入見込額 | CP120: 下水道事業会計 | DG120: 1084843 | DL120: 1549964 | DQ120: 1114881 | DV120: 5.2
C121: 国営土地改良事業・森林総合研究所等が行う事業に係るもの | AA121: 9397 | AF121: 9397 | AK121: 9397 | AP121: 0 | AZ121: 充当可能特定歳入 | BQ121: 5917007 | BV121: 5501247 | CA121: 5794273 | CF121: 27 | CP121: 水道事業会計 | DG121: 182586 | DL121: 141216 | DQ121: 146669 | DV121: 0.7
C122: 地方公務員等共済組合に係るもの | AA122: - | AF122: - | AK122: - | AP122: - | AZ122: 基準財政需要額算入見込額 | BQ122: 13393083 | BV122: 12337602 | CA122: 11487717 | CF122: 53.5
C123: 社会福祉法人の施設建設費に係るもの | AA123: - | AF123: - | AK123: - | AP123: - | AZ123: 合計 | BO123: (Ｆ) | BQ123: 35606230 | BV123: 36013893 | CA123: 34302986
C124: 損失補償・債務保証の履行に係るもの | AA124: - | AF124: - | AK124: - | AP124: - | AU124: 将来負担比率（(Ｅ)－(Ｆ)）／（(Ｃ)－(Ｄ)）×１００ | BQ124: - | BV124: - | CA124: - | CP124: その他の会計 | DG124: - | DL124: - | DQ124: - | DV124: -
C125: 引き受けた債務の履行に係るもの | AA125: - | AF125: - | AK125: - | AP125: - | CK125: 公社・ 三セク等 | CP125: 地方道路公社に係る将来負担額 | DG125: - | DL125: - | DQ125: - | DV125: -
C126: その他上記に準ずるもの | AA126: - | AF126: - | AK126: - | AP126: - | CP126: 土地開発公社に係る将来負担額 | DG126: - | DL126: - | DQ126: - | DV126: -
C127: 利子補給に係るもの | AA127: 17 | AF127: 12 | AK127: - | AP127: - | AX127: 健全化判断比率 | BF127: 令和2年度 | BM127: 早期健全化基準 | BT127: 財政再生基準 | CP127: 地方独立行政法人に係る将来負担額 | DG127: - | DL127: - | DQ127: - | DV127: -
A128: 特定財源の額 | W128: (Ｂ) | AA128: 1379209 | AF128: 1438136 | AK128: 1368148 | AX128: 実質赤字比率 | BF128: - | BM128: 12.24 | BT128: 20 | CP128: その他第三セクター等に係る将来負担額 | DG128: - | DL128: - | DQ128: - | DV128: -
A129: 標準財政規模 | W129: (Ｃ) | AA129: 22113543 | AF129: 21219643 | AK129: 22907364 | AX129: 連結実質赤字比率 | BF129: - | BM129: 17.24 | BT129: 30
A130: 算入公債費等の額 | W130: (Ｄ) | AA130: 1622083 | AF130: 1508631 | AK130: 1432756 | AX130: 実質公債費比率 | BF130: 0.1 | BM130: 25 | BT130: 35
W131: (Ｃ)－(Ｄ) | AA131: 20491460 | AF131: 19711012 | AK131: 21474608 | AX131: 将来負担比率 | BF131: - | BM131: 350
A132: 実質公債費比率 （(Ａ)－((Ｂ)＋(Ｄ))）／（(Ｃ)－(Ｄ)）×１００ | V132: (単年度) | AA132: 0.922408652 | AF132: 0.036852496 | AK132: -0.372612157
V133: (3ヵ年平均) | AA133: 1.8 | AF133: 0.7 | AK133: 0.1

Sheet 財政比較分析表

Sheet 経常経費分析表（経常収支比率の分析）

Sheet 経常経費分析表（人件費・公債費・普通建設事業費の分析）
A5: 人件費及び人件費に準ずる費用の分析
AK6: 人件費及び人件費に準ずる費用
AO7: 当該団体決算額 （千円） | AQ7: 人口1人当たり決算額
AP8: 当該団体（円） | AQ8: 類似団体平均（円） | AR8: 対比（％）
AK9: 人件費 | AO9: 6163712 | AP9: 58274 | AQ9: 61284 | AR9: -4.9
AK10: 一部事務組合負担金（補助費等） | AO10: 1458512 | AP10: 13789 | AQ10: 4056 | AR10: 240
AK11: 公営企業（法適）等に対する繰出し（補助費等） | AO11: 38376 | AP11: 363 | AQ11: 604 | AR11: -39.9
AK12: 公営企業（法適）等に対する繰出し（投資及び出資金・貸付金） | AO12: - | AP12: - | AQ12: 21 | AR12: -
AK13: 公営企業（法非適）等に対する繰出し（繰出金） | AO13: 214608 | AP13: 2029 | AQ13: 2509 | AR13: -19.1
AK14: 事業費支弁に係る職員の人件費（投資的経費） | AO14: 157710 | AP14: 1491 | AQ14: 1157 | AR14: 28.9
AK15: ▲退職金 | AO15: -143031 | AP15: -1352 | AQ15: -4228 | AR15: -68
AK16: 合計 | AO16: 7889887 | AP16: 74593 | AQ16: 65402 | AR16: 14.1
AK19: 参考
AO20: 当該団体 | AP20: 類似団体平均 | AQ20: 対比（差引）
AK21: 人口1,000人当たり職員数（人） | AO21: 6.01 | AP21: 6.06 | AQ21: -0.05
AK22: ラスパイレス指数 | AO22: 99.6 | AP22: 99.2 | AQ22: 0.4
A26: （注）人口については、各調査対象年度の1月1日現在の住民基本台帳に登載されている人口に基づいている。
A28: 公債費及び公債費に準ずる費用の分析
AK29: 公債費及び公債費に準ずる費用（実質公債費比率の構成要素）
AO30: 当該団体決算額 （千円） | AQ30: 人口1人当たり決算額
AP31: 当該団体（円） | AQ31: 類似団体平均（円） | AR31: 対比（％）
AK32: 元利償還金の額 （繰上償還額等を除く） | AO32: 1594727 | AP32: 15077 | AQ32: 32044 | AR32: -52.9
AK33: 積立不足額を考慮して算定した額 | AO33: - | AP33: - | AQ33: 6 | AR33: -
AK34: 満期一括償還地方債の一年当たりの元金償還金に相当するもの （年度割相当額） | AO34: - | AP34: - | AQ34: 29 | AR34: -
AK35: 公営企業に要する経費の財源とする地方債の償還の財源に 充てたと認められる繰入金 | AO35: 56382 | AP35: 533 | AQ35: 6008 | AR35: -91.1
AK36: 一部事務組合等の起こした地方債に充てたと認められる 補助金又は負担金 | AO36: 300235 | AP36: 2839 | AQ36: 1138 | AR36: 149.5
AK37: 公債費に準ずる債務負担行為に係るもの | AO37: 769543 | AP37: 7275 | AQ37: 852 | AR37: 753.9
AK38: 一時借入金利子 （同一団体における会計間の現金運用に係る利子は除く） | AO38: - | AP38: - | AQ38: 2 | AR38: -
AK39: ▲特定財源の額 | AO39: -1368148 | AP39: -12935 | AQ39: -6316 | AR39: 104.8
AK40: ▲地方債に係る元利償還金及び準元利償還金に要する経費として 普通交付税の額の算定に用いる基準財政需要額に算入された額 | AO40: -1432756 | AP40: -13546 | AQ40: -26078 | AR40: -48.1
AK41: 合計 | AO41: -80017 | AP41: -757 | AQ41: 7686 | AR41: -109.8
AK42: ※令和3年度中に市町村合併した団体で、合併前の団体ごとの決算に基づく実質公債費比率を算出していない団体については、グラフを表記しない。
A47: （参考） 普通建設事業費の分析
AK48: 普通建設事業費
AM49: 当該団体決算額 （千円） | AN49: 人口１人当たり決算額
AN50: 当該団体(円) | AO50: 増減率(%)(A) | AP50: 類似団体平均(円) | AQ50: 増減率(%)(B) | AR50: (A)-(B)
AK51: H28 | AM51: 7064229 | AN51: 72630 | AO51: 25.4 | AP51: 44504 | AQ51: -51.8 | AR51: 77.2
AL52: うち単独分 | AM52: 6380488 | AN52: 65600 | AO52: 55.2 | AP52: 25876 | AQ52: -30.4 | AR52: 85.6
AK53: H29 | AM53: 4324409 | AN53: 43555 | AO53: -40 | AP53: 47820 | AQ53: 7.5 | AR53: -47.5
AL54: うち単独分 | AM54: 2900067 | AN54: 29209 | AO54: -55.5 | AP54: 25855 | AQ54: -0.1 | AR54: -55.4
AK55: H30 | AM55: 4443127 | AN55: 43862 | AO55: 0.7 | AP55: 41934 | AQ55: -12.3 | AR55: 13
AL56: うち単独分 | AM56: 3289421 | AN56: 32472 | AO56: 11.2 | AP56: 23352 | AQ56: -9.7 | AR56: 20.9
AK57: R01 | AM57: 4210009 | AN57: 40671 | AO57: -7.3 | AP57: 45588 | AQ57: 8.7 | AR57: -16
AL58: うち単独分 | AM58: 3103601 | AN58: 29983 | AO58: -7.7 | AP58: 24150 | AQ58: 3.4 | AR58: -11.1
AK59: R02 | AM59: 5257326 | AN59: 49704 | AO59: 22.2 | AP59: 44161 | AQ59: -3.1 | AR59: 25.3
AL60: うち単独分 | AM60: 4199780 | AN60: 39706 | AO60: 32.4 | AP60: 23644 | AQ60: -2.1 | AR60: 34.5
AK61: 過去５年間平均 | AM61: 5059820 | AN61: 50084 | AO61: 0.2 | AP61: 44801 | AQ61: -10.2 | AR61: 10.4
AL62: うち単独分 | AM62: 3974671 | AN62: 39394 | AO62: 7.1 | AP62: 24575 | AQ62: -7.8 | AR62: 14.9

Sheet 性質別歳出決算分析表（住民一人当たりのコスト）

Sheet 目的別歳出決算分析表（住民一人当たりのコスト）

Sheet 実質収支比率等に係る経年分析
J45: 標準財政規模比（％）
B46: 区分 | E46: 年度 | F46: H28 | G46: H29 | H46: H30 | I46: R01 | J46: R02
C47: 財政調整基金残高 | F47: 42.08 | G47: 47.54 | H47: 42.46 | I47: 49.54 | J47: 40.5
C48: 実質収支額 | F48: 9.55 | G48: 9.73 | H48: 9.88 | I48: 8.65 | J48: 13.09
C49: 実質単年度収支 | F49: ▲ 0.56 | G49: ▲ 0.93 | H49: ▲ 6.24 | I49: ▲ 1.53 | J49: ▲ 0.32

Sheet 連結実質赤字比率に係る赤字・黒字の構成分析
J32: 標準財政規模比（％）
B33: 会計 | E33: 年度 | F33: H28 | G33: H29 | H33: H30 | I33: R01 | J33: R02
C34: 一般会計 | F34: 9.54 | G34: 9.72 | H34: 9.88 | I34: 8.65 | J34: 13.08
C35: 水道事業会計 | F35: 8.12 | G35: 8.17 | H35: 7.98 | I35: 8.74 | J35: 8.14
C36: 下水道事業会計 | F36: 0.54 | G36: 0.57 | H36: 0.31 | I36: ▲ 0.08 | J36: 5.94
C37: 介護保険特別会計 | F37: 1.01 | G37: 1.37 | H37: 1.12 | I37: 0.94 | J37: 1.26
C38: 国民健康保険特別会計 | F38: 0.47 | G38: 0.46 | H38: 0.19 | I38: 0.36 | J38: 0.38
C39: 後期高齢者医療特別会計 | F39: 0.05 | G39: 0.05 | H39: 0.05 | I39: 0.05 | J39: 0.08
C42: その他会計（赤字） | F42: - | G42: - | H42: - | I42: - | J42: -
C43: その他会計（黒字） | F43: - | G43: - | H43: - | I43: - | J43: -
B44: ※令和3年度中に市町村合併した団体で、合併前の団体ごとの決算に基づく連結実質赤字比率を算出していない団体については、グラフを表記しない。

Sheet 実質公債費比率（分子）の構造
O43: （百万円）
B44: 分子の構造 | J44: 年度 | K44: H28 | L44: H29 | M44: H30 | N44: R01 | O44: R02
B45: 元利償還金等(A) | E45: 元利償還金 | K45: 2390 | L45: 2134 | M45: 1928 | N45: 1707 | O45: 1595
E46: 減債基金積立不足算定額※2 | K46: - | L46: - | M46: - | N46: - | O46: -
E47: 満期一括償還地方債に係る年度割相当額 | K47: - | L47: - | M47: - | N47: - | O47: -
E48: 公営企業債の元利償還金に対する繰入金 | K48: 201 | L48: 194 | M48: 173 | N48: 161 | O48: 56
E49: 組合等が起こした地方債の元利償還金に対する負担金等 | K49: 269 | L49: 233 | M49: 223 | N49: 256 | O49: 300
E50: 債務負担行為に基づく支出額 | K50: 895 | L50: 867 | M50: 865 | N50: 830 | O50: 770
E51: 一時借入金の利子 | K51: - | L51: - | M51: - | N51: - | O51: -
B52: 算入公債費等(B) | E52: 算入公債費等 | K52: 3138 | L52: 3157 | M52: 3002 | N52: 2946 | O52: 2801
B53: (A)－(B) | E53: 実質公債費比率の分子 | K53: 617 | L53: 271 | M53: 187 | N53: 8 | O53: -80
B54: ※1 令和3年度中に市町村合併した団体で、合併前の団体ごとの決算に基づく実質公債費比率を算出していない団体については、グラフを表記しない。
B55: （参考） | O55: （百万円）
J56: 年度 | K56: H27末 | L56: H28末 | M56: H29末 | N56: H30末 | O56: R01末
B57: ※2 減債基金 積立状況等 | D57: 減債基金残高（注） | K57: - | L57: - | M57: - | N57: - | O57: -
D58: 減債基金積立相当額 | K58: - | L58: - | M58: - | N58: - | O58: -
D59: （注）減債基金残高のうち、実質公債費比率の算定に用いる満期一括償還地方債の償還の財源として積み立てた額に係るもののみを記入。
D60: 減債基金積立金の年度を超えた一般会計又は特別会計への貸付額は控除して記入。

Sheet 将来負担比率（分子）の構造
M39: （百万円）
B40: 分子の構造 | H40: 年度 | I40: H28 | J40: H29 | K40: H30 | L40: R01 | M40: R02
B41: 将来負担額(A) | E41: 一般会計等に係る地方債の現在高 | I41: 17629 | J41: 16076 | K41: 14547 | L41: 13462 | M41: 13368
E42: 債務負担行為に基づく支出予定額 | I42: 8358 | J42: 7490 | K42: 6624 | L42: 5547 | M42: 5175
E43: 公営企業債等繰入見込額 | I43: 1988 | J43: 1852 | K43: 1267 | L43: 1691 | M43: 1262
E44: 組合等負担等見込額 | I44: 1984 | J44: 2442 | K44: 2619 | L44: 2127 | M44: 2312
E45: 退職手当負担見込額 | I45: 2860 | J45: 3093 | K45: 3186 | L45: 3277 | M45: 3422
E46: 設立法人等の負債額等負担見込額 | I46: - | J46: - | K46: - | L46: - | M46: -
E47: うち、健全化法施行規則附則第三条に係る負担見込額 | I47: - | J47: - | K47: - | L47: - | M47: -
E48: 連結実質赤字額 | I48: - | J48: - | K48: - | L48: - | M48: -
E49: 組合等連結実質赤字額負担見込額 | I49: - | J49: - | K49: - | L49: - | M49: -
B50: 充当可能財源等(B) | E50: 充当可能基金 | I50: 13390 | J50: 15146 | K50: 16296 | L50: 18175 | M50: 17021
E51: 充当可能特定歳入 | I51: 5953 | J51: 6230 | K51: 5917 | L51: 5501 | M51: 5794
E52: 基準財政需要額算入見込額 | I52: 15835 | J52: 14610 | K52: 13393 | L52: 12338 | M52: 11488
B53: (A)－(B) | E53: 将来負担比率の分子 | I53: -2359 | J53: -5034 | K53: -7362 | L53: -9909 | M53: -8764
B54: ※令和3年度中に市町村合併した団体で、合併前の団体ごとの決算に基づく将来負担比率を算出していない団体については、グラフを表記しない。

Sheet 基金残高に係る経年分析
H53: （百万円）
B54: 区分 | E54: 年度 | F54: H30 | G54: R01 | H54: R02
C55: 財政調整基金 | F55: 9388 | G55: 10512 | H55: 9278
C56: 減債基金 | F56: 135 | G56: 120 | H56: 104
C57: その他特定目的基金 | F57: 6024 | G57: 5741 | H57: 6534
C58: 公共施設整備基金 | F58: - | G58: - | H58: 5000
C59: 教育振興基金 | F59: - | G59: - | H59: 545
C60: 都市廃棄物空気輸送施設収束事業基金 | F60: 515 | G60: 511 | H60: 506
C61: 都市計画事業基金 | F61: 147 | G61: 147 | H61: 147
C62: ふるさとづくり運営基金 | F62: 157 | G62: 144 | H62: 128
C63: 基金残高合計 | F63: 15548 | G63: 16373 | H63: 15915

Sheet データシート (hidden)
D2: 当該団体(円) | F2: 類似団体内平均(円)
A3: H28 | D3: 72630 | F3: 44504
D4: 65600 | F4: 25876
A5: H29 | D5: 43555 | F5: 47820
D6: 29209 | F6: 25855
A7: H30 | D7: 43862 | F7: 41934
D8: 32472 | F8: 23352
A9: R01 | D9: 40671 | F9: 45588
D10: 29983 | F10: 24150
A11: R02 | D11: 49704 | F11: 44161
D12: 39706 | F12: 23644
D13: 50084 | F13: 44801
D14: 39394 | F14: 24575
A17: 実質収支比率等に係る経年分析
B18: =実質収支比率等に係る経年分析!F$46 -> H28 | C18: =実質収支比率等に係る経年分析!G$46 -> H29 | D18: =実質収支比率等に係る経年分析!H$46 -> H30 | E18: =実質収支比率等に係る経年分析!I$46 -> R01 | F18: =実質収支比率等に係る経年分析!J$46 -> R02
A19: 実質収支額 | B19: =ROUND(VALUE(SUBSTITUTE(実質収支比率等に係る経年分析!F$48,"▲","-")),2) -> 9.55 | C19: =ROUND(VALUE(SUBSTITUTE(実質収支比率等に係る経年分析!G$48,"▲","-")),2) -> 9.73 | D19: =ROUND(VALUE(SUBSTITUTE(実質収支比率等に係る経年分析!H$48,"▲","-")),2) -> 9.88 | E19: =ROUND(VALUE(SUBSTITUTE(実質収支比率等に係る経年分析!I$48,"▲","-")),2) -> 8.65 | F19: =ROUND(VALUE(SUBSTITUTE(実質収支比率等に係る経年分析!J$48,"▲","-")),2) -> 13.09
A20: 財政調整基金残高 | B20: =ROUND(VALUE(SUBSTITUTE(実質収支比率等に係る経年分析!F$47,"▲","-")),2) -> 42.08 | C20: =ROUND(VALUE(SUBSTITUTE(実質収支比率等に係る経年分析!G$47,"▲","-")),2) -> 47.54 | D20: =ROUND(VALUE(SUBSTITUTE(実質収支比率等に係る経年分析!H$47,"▲","-")),2) -> 42.46 | E20: =ROUND(VALUE(SUBSTITUTE(実質収支比率等に係る経年分析!I$47,"▲","-")),2) -> 49.54 | F20: =ROUND(VALUE(SUBSTITUTE(実質収支比率等に係る経年分析!J$47,"▲","-")),2) -> 40.5
A21: 実質単年度収支 | B21: =IF(ISNUMBER(VALUE(SUBSTITUTE(実質収支比率等に係る経年分析!F$49,"▲","-"))),ROUND(VALUE(SUBSTITUTE(実質収支比率等に係る経年分析!F$49,"▲","-")),2),NA()) -> -0.56 | C21: =IF(ISNUMBER(VALUE(SUBSTITUTE(実質収支比率等に係る経年分析!G$49,"▲","-"))),ROUND(VALUE(SUBSTITUTE(実質収支比率等に係る経年分析!G$49,"▲","-")),2),NA()) -> -0.93 | D21: =IF(ISNUMBER(VALUE(SUBSTITUTE(実質収支比率等に係る経年分析!H$49,"▲","-"))),ROUND(VALUE(SUBSTITUTE(実質収支比率等に係る経年分析!H$49,"▲","-")),2),NA()) -> -6.24 | E21: =IF(ISNUMBER(VALUE(SUBSTITUTE(実質収支比率等に係る経年分析!I$49,"▲","-"))),ROUND(VALUE(SUBSTITUTE(実質収支比率等に係る経年分析!I$49,"▲","-")),2),NA()) -> -1.53 | F21: =IF(ISNUMBER(VALUE(SUBSTITUTE(実質収支比率等に係る経年分析!J$49,"▲","-"))),ROUND(VALUE(SUBSTITUTE(実質収支比率等に係る経年分析!J$49,"▲","-")),2),NA()) -> -0.32
A24: 連結実質赤字比率に係る赤字・黒字の構成分析
B25: =連結実質赤字比率に係る赤字・黒字の構成分析!F$33 -> H28 | D25: =連結実質赤字比率に係る赤字・黒字の構成分析!G$33 -> H29 | F25: =連結実質赤字比率に係る赤字・黒字の構成分析!H$33 -> H30 | H25: =連結実質赤字比率に係る赤字・黒字の構成分析!I$33 -> R01 | J25: =連結実質赤字比率に係る赤字・黒字の構成分析!J$33 -> R02
B26: 赤字額 | C26: 黒字額 | D26: 赤字額 | E26: 黒字額 | F26: 赤字額 | G26: 黒字額 | H26: 赤字額 | I26: 黒字額 | J26: 赤字額 | K26: 黒字額
A27: =IF(連結実質赤字比率に係る赤字・黒字の構成分析!C$43="",NA(),連結実質赤字比率に係る赤字・黒字の構成分析!C$43) -> その他会計（黒字） | B27: =IF(ROUND(VALUE(SUBSTITUTE(連結実質赤字比率に係る赤字・黒字の構成分析!F$43,"▲", "-")), 2) < 0, ABS(ROUND(VALUE(SUBSTITUTE(連結実質赤字比率に係る赤字・黒字の構成分析!F$43,"▲", "-")), 2)), NA()) ->  | C27: =IF(ROUND(VALUE(SUBSTITUTE(連結実質赤字比率に係る赤字・黒字の構成分析!F$43,"▲", "-")), 2) >= 0, ABS(ROUND(VALUE(SUBSTITUTE(連結実質赤字比率に係る赤字・黒字の構成分析!F$43,"▲", "-")), 2)), NA()) ->  | D27: =IF(ROUND(VALUE(SUBSTITUTE(連結実質赤字比率に係る赤字・黒字の構成分析!G$43,"▲", "-")), 2) < 0, ABS(ROUND(VALUE(SUBSTITUTE(連結実質赤字比率に係る赤字・黒字の構成分析!G$43,"▲", "-")), 2)), NA()) ->  | E27: =IF(ROUND(VALUE(SUBSTITUTE(連結実質赤字比率に係る赤字・黒字の構成分析!G$43,"▲", "-")), 2) >= 0, ABS(ROUND(VALUE(SUBSTITUTE(連結実質赤字比率に係る赤字・黒字の構成分析!G$43,"▲", "-")), 2)), NA()) ->  | F27: =IF(ROUND(VALUE(SUBSTITUTE(連結実質赤字比率に係る赤字・黒字の構成分析!H$43,"▲", "-")), 2) < 0, ABS(ROUND(VALUE(SUBSTITUTE(連結実質赤字比率に係る赤字・黒字の構成分析!H$43,"▲", "-")), 2)), NA()) ->  | G27: =IF(ROUND(VALUE(SUBSTITUTE(連結実質赤字比率に係る赤字・黒字の構成分析!H$43,"▲", "-")), 2) >= 0, ABS(ROUND(VALUE(SUBSTITUTE(連結実質赤字比率に係る赤字・黒字の構成分析!H$43,"▲", "-")), 2)), NA()) ->  | H27: =IF(ROUND(VALUE(SUBSTITUTE(連結実質赤字比率に係る赤字・黒字の構成分析!I$43,"▲", "-")), 2) < 0, ABS(ROUND(VALUE(SUBSTITUTE(連結実質赤字比率に係る赤字・黒字の構成分析!I$43,"▲", "-")), 2)), NA()) ->  | I27: =IF(ROUND(VALUE(SUBSTITUTE(連結実質赤字比率に係る赤字・黒字の構成分析!I$43,"▲", "-")), 2) >= 0, ABS(ROUND(VALUE(SUBSTITUTE(連結実質赤字比率に係る赤字・黒字の構成分析!I$43,"▲", "-")), 2)), NA()) ->  | J27: =IF(ROUND(VALUE(SUBSTITUTE(連結実質赤字比率に係る赤字・黒字の構成分析!J$43,"▲", "-")), 2) < 0, ABS(ROUND(VALUE(SUBSTITUTE(連結実質赤字比率に係る赤字・黒字の構成分析!J$43,"▲", "-")), 2)), NA()) ->  | K27: =IF(ROUND(VALUE(SUBSTITUTE(連結実質赤字比率に係る赤字・黒字の構成分析!J$43,"▲", "-")), 2) >= 0, ABS(ROUND(VALUE(SUBSTITUTE(連結実質赤字比率に係る赤字・黒字の構成分析!J$43,"▲", "-")), 2)), NA()) -> 
A28: =IF(連結実質赤字比率に係る赤字・黒字の構成分析!C$42="",NA(),連結実質赤字比率に係る赤字・黒字の構成分析!C$42) -> その他会計（赤字） | B28: =IF(ROUND(VALUE(SUBSTITUTE(連結実質赤字比率に係る赤字・黒字の構成分析!F$42,"▲", "-")), 2) < 0, ABS(ROUND(VALUE(SUBSTITUTE(連結実質赤字比率に係る赤字・黒字の構成分析!F$42,"▲", "-")), 2)), NA()) ->  | C28: =IF(ROUND(VALUE(SUBSTITUTE(連結実質赤字比率に係る赤字・黒字の構成分析!F$42,"▲", "-")), 2) >= 0, ABS(ROUND(VALUE(SUBSTITUTE(連結実質赤字比率に係る赤字・黒字の構成分析!F$42,"▲", "-")), 2)), NA()) ->  | D28: =IF(ROUND(VALUE(SUBSTITUTE(連結実質赤字比率に係る赤字・黒字の構成分析!G$42,"▲", "-")), 2) < 0, ABS(ROUND(VALUE(SUBSTITUTE(連結実質赤字比率に係る赤字・黒字の構成分析!G$42,"▲", "-")), 2)), NA()) ->  | E28: =IF(ROUND(VALUE(SUBSTITUTE(連結実質赤字比率に係る赤字・黒字の構成分析!G$42,"▲", "-")), 2) >= 0, ABS(ROUND(VALUE(SUBSTITUTE(連結実質赤字比率に係る赤字・黒字の構成分析!G$42,"▲", "-")), 2)), NA()) ->  | F28: =IF(ROUND(VALUE(SUBSTITUTE(連結実質赤字比率に係る赤字・黒字の構成分析!H$42,"▲", "-")), 2) < 0, ABS(ROUND(VALUE(SUBSTITUTE(連結実質赤字比率に係る赤字・黒字の構成分析!H$42,"▲", "-")), 2)), NA()) ->  | G28: =IF(ROUND(VALUE(SUBSTITUTE(連結実質赤字比率に係る赤字・黒字の構成分析!H$42,"▲", "-")), 2) >= 0, ABS(ROUND(VALUE(SUBSTITUTE(連結実質赤字比率に係る赤字・黒字の構成分析!H$42,"▲", "-")), 2)), NA()) ->  | H28: =IF(ROUND(VALUE(SUBSTITUTE(連結実質赤字比率に係る赤字・黒字の構成分析!I$42,"▲", "-")), 2) < 0, ABS(ROUND(VALUE(SUBSTITUTE(連結実質赤字比率に係る赤字・黒字の構成分析!I$42,"▲", "-")), 2)), NA()) ->  | I28: =IF(ROUND(VALUE(SUBSTITUTE(連結実質赤字比率に係る赤字・黒字の構成分析!I$42,"▲", "-")), 2) >= 0, ABS(ROUND(VALUE(SUBSTITUTE(連結実質赤字比率に係る赤字・黒字の構成分析!I$42,"▲", "-")), 2)), NA()) ->  | J28: =IF(ROUND(VALUE(SUBSTITUTE(連結実質赤字比率に係る赤字・黒字の構成分析!J$42,"▲", "-")), 2) < 0, ABS(ROUND(VALUE(SUBSTITUTE(連結実質赤字比率に係る赤字・黒字の構成分析!J$42,"▲", "-")), 2)), NA()) ->  | K28: =IF(ROUND(VALUE(SUBSTITUTE(連結実質赤字比率に係る赤字・黒字の構成分析!J$42,"▲", "-")), 2) >= 0, ABS(ROUND(VALUE(SUBSTITUTE(連結実質赤字比率に係る赤字・黒字の構成分析!J$42,"▲", "-")), 2)), NA()) -> 
A29: =IF(連結実質赤字比率に係る赤字・黒字の構成分析!C$41="",NA(),連結実質赤字比率に係る赤字・黒字の構成分析!C$41) ->  | B29: =IF(ROUND(VALUE(SUBSTITUTE(連結実質赤字比率に係る赤字・黒字の構成分析!F$41,"▲", "-")), 2) < 0, ABS(ROUND(VALUE(SUBSTITUTE(連結実質赤字比率に係る赤字・黒字の構成分析!F$41,"▲", "-")), 2)), NA()) ->  | C29: =IF(ROUND(VALUE(SUBSTITUTE(連結実質赤字比率に係る赤字・黒字の構成分析!F$41,"▲", "-")), 2) >= 0, ABS(ROUND(VALUE(SUBSTITUTE(連結実質赤字比率に係る赤字・黒字の構成分析!F$41,"▲", "-")), 2)), NA()) ->  | D29: =IF(ROUND(VALUE(SUBSTITUTE(連結実質赤字比率に係る赤字・黒字の構成分析!G$41,"▲", "-")), 2) < 0, ABS(ROUND(VALUE(SUBSTITUTE(連結実質赤字比率に係る赤字・黒字の構成分析!G$41,"▲", "-")), 2)), NA()) ->  | E29: =IF(ROUND(VALUE(SUBSTITUTE(連結実質赤字比率に係る赤字・黒字の構成分析!G$41,"▲", "-")), 2) >= 0, ABS(ROUND(VALUE(SUBSTITUTE(連結実質赤字比率に係る赤字・黒字の構成分析!G$41,"▲", "-")), 2)), NA()) ->  | F29: =IF(ROUND(VALUE(SUBSTITUTE(連結実質赤字比率に係る赤字・黒字の構成分析!H$41,"▲", "-")), 2) < 0, ABS(ROUND(VALUE(SUBSTITUTE(連結実質赤字比率に係る赤字・黒字の構成分析!H$41,"▲", "-")), 2)), NA()) ->  | G29: =IF(ROUND(VALUE(SUBSTITUTE(連結実質赤字比率に係る赤字・黒字の構成分析!H$41,"▲", "-")), 2) >= 0, ABS(ROUND(VALUE(SUBSTITUTE(連結実質赤字比率に係る赤字・黒字の構成分析!H$41,"▲", "-")), 2)), NA()) ->  | H29: =IF(ROUND(VALUE(SUBSTITUTE(連結実質赤字比率に係る赤字・黒字の構成分析!I$41,"▲", "-")), 2) < 0, ABS(ROUND(VALUE(SUBSTITUTE(連結実質赤字比率に係る赤字・黒字の構成分析!I$41,"▲", "-")), 2)), NA()) ->  | I29: =IF(ROUND(VALUE(SUBSTITUTE(連結実質赤字比率に係る赤字・黒字の構成分析!I$41,"▲", "-")), 2) >= 0, ABS(ROUND(VALUE(SUBSTITUTE(連結実質赤字比率に係る赤字・黒字の構成分析!I$41,"▲", "-")), 2)), NA()) ->  | J29: =IF(ROUND(VALUE(SUBSTITUTE(連結実質赤字比率に係る赤字・黒字の構成分析!J$41,"▲", "-")), 2) < 0, ABS(ROUND(VALUE(SUBSTITUTE(連結実質赤字比率に係る赤字・黒字の構成分析!J$41,"▲", "-")), 2)), NA()) ->  | K29: =IF(ROUND(VALUE(SUBSTITUTE(連結実質赤字比率に係る赤字・黒字の構成分析!J$41,"▲", "-")), 2) >= 0, ABS(ROUND(VALUE(SUBSTITUTE(連結実質赤字比率に係る赤字・黒字の構成分析!J$41,"▲", "-")), 2)), NA()) -> 
A30: =IF(連結実質赤字比率に係る赤字・黒字の構成分析!C$40="",NA(),連結実質赤字比率に係る赤字・黒字の構成分析!C$40) ->  | B30: =IF(ROUND(VALUE(SUBSTITUTE(連結実質赤字比率に係る赤字・黒字の構成分析!F$40,"▲", "-")), 2) < 0, ABS(ROUND(VALUE(SUBSTITUTE(連結実質赤字比率に係る赤字・黒字の構成分析!F$40,"▲", "-")), 2)), NA()) ->  | C30: =IF(ROUND(VALUE(SUBSTITUTE(連結実質赤字比率に係る赤字・黒字の構成分析!F$40,"▲", "-")), 2) >= 0, ABS(ROUND(VALUE(SUBSTITUTE(連結実質赤字比率に係る赤字・黒字の構成分析!F$40,"▲", "-")), 2)), NA()) ->  | D30: =IF(ROUND(VALUE(SUBSTITUTE(連結実質赤字比率に係る赤字・黒字の構成分析!G$40,"▲", "-")), 2) < 0, ABS(ROUND(VALUE(SUBSTITUTE(連結実質赤字比率に係る赤字・黒字の構成分析!G$40,"▲", "-")), 2)), NA()) ->  | E30: =IF(ROUND(VALUE(SUBSTITUTE(連結実質赤字比率に係る赤字・黒字の構成分析!G$40,"▲", "-")), 2) >= 0, ABS(ROUND(VALUE(SUBSTITUTE(連結実質赤字比率に係る赤字・黒字の構成分析!G$40,"▲", "-")), 2)), NA()) ->  | F30: =IF(ROUND(VALUE(SUBSTITUTE(連結実質赤字比率に係る赤字・黒字の構成分析!H$40,"▲", "-")), 2) < 0, ABS(ROUND(VALUE(SUBSTITUTE(連結実質赤字比率に係る赤字・黒字の構成分析!H$40,"▲", "-")), 2)), NA()) ->  | G30: =IF(ROUND(VALUE(SUBSTITUTE(連結実質赤字比率に係る赤字・黒字の構成分析!H$40,"▲", "-")), 2) >= 0, ABS(ROUND(VALUE(SUBSTITUTE(連結実質赤字比率に係る赤字・黒字の構成分析!H$40,"▲", "-")), 2)), NA()) ->  | H30: =IF(ROUND(VALUE(SUBSTITUTE(連結実質赤字比率に係る赤字・黒字の構成分析!I$40,"▲", "-")), 2) < 0, ABS(ROUND(VALUE(SUBSTITUTE(連結実質赤字比率に係る赤字・黒字の構成分析!I$40,"▲", "-")), 2)), NA()) ->  | I30: =IF(ROUND(VALUE(SUBSTITUTE(連結実質赤字比率に係る赤字・黒字の構成分析!I$40,"▲", "-")), 2) >= 0, ABS(ROUND(VALUE(SUBSTITUTE(連結実質赤字比率に係る赤字・黒字の構成分析!I$40,"▲", "-")), 2)), NA()) ->  | J30: =IF(ROUND(VALUE(SUBSTITUTE(連結実質赤字比率に係る赤字・黒字の構成分析!J$40,"▲", "-")), 2) < 0, ABS(ROUND(VALUE(SUBSTITUTE(連結実質赤字比率に係る赤字・黒字の構成分析!J$40,"▲", "-")), 2)), NA()) ->  | K30: =IF(ROUND(VALUE(SUBSTITUTE(連結実質赤字比率に係る赤字・黒字の構成分析!J$40,"▲", "-")), 2) >= 0, ABS(ROUND(VALUE(SUBSTITUTE(連結実質赤字比率に係る赤字・黒字の構成分析!J$40,"▲", "-")), 2)), NA()) -> 
A31: =IF(連結実質赤字比率に係る赤字・黒字の構成分析!C$39="",NA(),連結実質赤字比率に係る赤字・黒字の構成分析!C$39) -> 後期高齢者医療特別会計 | B31: =IF(ROUND(VALUE(SUBSTITUTE(連結実質赤字比率に係る赤字・黒字の構成分析!F$39,"▲", "-")), 2) < 0, ABS(ROUND(VALUE(SUBSTITUTE(連結実質赤字比率に係る赤字・黒字の構成分析!F$39,"▲", "-")), 2)), NA()) ->  | C31: =IF(ROUND(VALUE(SUBSTITUTE(連結実質赤字比率に係る赤字・黒字の構成分析!F$39,"▲", "-")), 2) >= 0, ABS(ROUND(VALUE(SUBSTITUTE(連結実質赤字比率に係る赤字・黒字の構成分析!F$39,"▲", "-")), 2)), NA()) -> 0.05 | D31: =IF(ROUND(VALUE(SUBSTITUTE(連結実質赤字比率に係る赤字・黒字の構成分析!G$39,"▲", "-")), 2) < 0, ABS(ROUND(VALUE(SUBSTITUTE(連結実質赤字比率に係る赤字・黒字の構成分析!G$39,"▲", "-")), 2)), NA()) ->  | E31: =IF(ROUND(VALUE(SUBSTITUTE(連結実質赤字比率に係る赤字・黒字の構成分析!G$39,"▲", "-")), 2) >= 0, ABS(ROUND(VALUE(SUBSTITUTE(連結実質赤字比率に係る赤字・黒字の構成分析!G$39,"▲", "-")), 2)), NA()) -> 0.05 | F31: =IF(ROUND(VALUE(SUBSTITUTE(連結実質赤字比率に係る赤字・黒字の構成分析!H$39,"▲", "-")), 2) < 0, ABS(ROUND(VALUE(SUBSTITUTE(連結実質赤字比率に係る赤字・黒字の構成分析!H$39,"▲", "-")), 2)), NA()) ->  | G31: =IF(ROUND(VALUE(SUBSTITUTE(連結実質赤字比率に係る赤字・黒字の構成分析!H$39,"▲", "-")), 2) >= 0, ABS(ROUND(VALUE(SUBSTITUTE(連結実質赤字比率に係る赤字・黒字の構成分析!H$39,"▲", "-")), 2)), NA()) -> 0.05 | H31: =IF(ROUND(VALUE(SUBSTITUTE(連結実質赤字比率に係る赤字・黒字の構成分析!I$39,"▲", "-")), 2) < 0, ABS(ROUND(VALUE(SUBSTITUTE(連結実質赤字比率に係る赤字・黒字の構成分析!I$39,"▲", "-")), 2)), NA()) ->  | I31: =IF(ROUND(VALUE(SUBSTITUTE(連結実質赤字比率に係る赤字・黒字の構成分析!I$39,"▲", "-")), 2) >= 0, ABS(ROUND(VALUE(SUBSTITUTE(連結実質赤字比率に係る赤字・黒字の構成分析!I$39,"▲", "-")), 2)), NA()) -> 0.05 | J31: =IF(ROUND(VALUE(SUBSTITUTE(連結実質赤字比率に係る赤字・黒字の構成分析!J$39,"▲", "-")), 2) < 0, ABS(ROUND(VALUE(SUBSTITUTE(連結実質赤字比率に係る赤字・黒字の構成分析!J$39,"▲", "-")), 2)), NA()) ->  | K31: =IF(ROUND(VALUE(SUBSTITUTE(連結実質赤字比率に係る赤字・黒字の構成分析!J$39,"▲", "-")), 2) >= 0, ABS(ROUND(VALUE(SUBSTITUTE(連結実質赤字比率に係る赤字・黒字の構成分析!J$39,"▲", "-")), 2)), NA()) -> 0.08
A32: =IF(連結実質赤字比率に係る赤字・黒字の構成分析!C$38="",NA(),連結実質赤字比率に係る赤字・黒字の構成分析!C$38) -> 国民健康保険特別会計 | B32: =IF(ROUND(VALUE(SUBSTITUTE(連結実質赤字比率に係る赤字・黒字の構成分析!F$38,"▲", "-")), 2) < 0, ABS(ROUND(VALUE(SUBSTITUTE(連結実質赤字比率に係る赤字・黒字の構成分析!F$38,"▲", "-")), 2)), NA()) ->  | C32: =IF(ROUND(VALUE(SUBSTITUTE(連結実質赤字比率に係る赤字・黒字の構成分析!F$38,"▲", "-")), 2) >= 0, ABS(ROUND(VALUE(SUBSTITUTE(連結実質赤字比率に係る赤字・黒字の構成分析!F$38,"▲", "-")), 2)), NA()) -> 0.47 | D32: =IF(ROUND(VALUE(SUBSTITUTE(連結実質赤字比率に係る赤字・黒字の構成分析!G$38,"▲", "-")), 2) < 0, ABS(ROUND(VALUE(SUBSTITUTE(連結実質赤字比率に係る赤字・黒字の構成分析!G$38,"▲", "-")), 2)), NA()) ->  | E32: =IF(ROUND(VALUE(SUBSTITUTE(連結実質赤字比率に係る赤字・黒字の構成分析!G$38,"▲", "-")), 2) >= 0, ABS(ROUND(VALUE(SUBSTITUTE(連結実質赤字比率に係る赤字・黒字の構成分析!G$38,"▲", "-")), 2)), NA()) -> 0.46 | F32: =IF(ROUND(VALUE(SUBSTITUTE(連結実質赤字比率に係る赤字・黒字の構成分析!H$38,"▲", "-")), 2) < 0, ABS(ROUND(VALUE(SUBSTITUTE(連結実質赤字比率に係る赤字・黒字の構成分析!H$38,"▲", "-")), 2)), NA()) ->  | G32: =IF(ROUND(VALUE(SUBSTITUTE(連結実質赤字比率に係る赤字・黒字の構成分析!H$38,"▲", "-")), 2) >= 0, ABS(ROUND(VALUE(SUBSTITUTE(連結実質赤字比率に係る赤字・黒字の構成分析!H$38,"▲", "-")), 2)), NA()) -> 0.19 | H32: =IF(ROUND(VALUE(SUBSTITUTE(連結実質赤字比率に係る赤字・黒字の構成分析!I$38,"▲", "-")), 2) < 0, ABS(ROUND(VALUE(SUBSTITUTE(連結実質赤字比率に係る赤字・黒字の構成分析!I$38,"▲", "-")), 2)), NA()) ->  | I32: =IF(ROUND(VALUE(SUBSTITUTE(連結実質赤字比率に係る赤字・黒字の構成分析!I$38,"▲", "-")), 2) >= 0, ABS(ROUND(VALUE(SUBSTITUTE(連結実質赤字比率に係る赤字・黒字の構成分析!I$38,"▲", "-")), 2)), NA()) -> 0.36 | J32: =IF(ROUND(VALUE(SUBSTITUTE(連結実質赤字比率に係る赤字・黒字の構成分析!J$38,"▲", "-")), 2) < 0, ABS(ROUND(VALUE(SUBSTITUTE(連結実質赤字比率に係る赤字・黒字の構成分析!J$38,"▲", "-")), 2)), NA()) ->  | K32: =IF(ROUND(VALUE(SUBSTITUTE(連結実質赤字比率に係る赤字・黒字の構成分析!J$38,"▲", "-")), 2) >= 0, ABS(ROUND(VALUE(SUBSTITUTE(連結実質赤字比率に係る赤字・黒字の構成分析!J$38,"▲", "-")), 2)), NA()) -> 0.38
A33: =IF(連結実質赤字比率に係る赤字・黒字の構成分析!C$37="",NA(),連結実質赤字比率に係る赤字・黒字の構成分析!C$37) -> 介護保険特別会計 | B33: =IF(ROUND(VALUE(SUBSTITUTE(連結実質赤字比率に係る赤字・黒字の構成分析!F$37,"▲", "-")), 2) < 0, ABS(ROUND(VALUE(SUBSTITUTE(連結実質赤字比率に係る赤字・黒字の構成分析!F$37,"▲", "-")), 2)), NA()) ->  | C33: =IF(ROUND(VALUE(SUBSTITUTE(連結実質赤字比率に係る赤字・黒字の構成分析!F$37,"▲", "-")), 2) >= 0, ABS(ROUND(VALUE(SUBSTITUTE(連結実質赤字比率に係る赤字・黒字の構成分析!F$37,"▲", "-")), 2)), NA()) -> 1.01 | D33: =IF(ROUND(VALUE(SUBSTITUTE(連結実質赤字比率に係る赤字・黒字の構成分析!G$37,"▲", "-")), 2) < 0, ABS(ROUND(VALUE(SUBSTITUTE(連結実質赤字比率に係る赤字・黒字の構成分析!G$37,"▲", "-")), 2)), NA()) ->  | E33: =IF(ROUND(VALUE(SUBSTITUTE(連結実質赤字比率に係る赤字・黒字の構成分析!G$37,"▲", "-")), 2) >= 0, ABS(ROUND(VALUE(SUBSTITUTE(連結実質赤字比率に係る赤字・黒字の構成分析!G$37,"▲", "-")), 2)), NA()) -> 1.37 | F33: =IF(ROUND(VALUE(SUBSTITUTE(連結実質赤字比率に係る赤字・黒字の構成分析!H$37,"▲", "-")), 2) < 0, ABS(ROUND(VALUE(SUBSTITUTE(連結実質赤字比率に係る赤字・黒字の構成分析!H$37,"▲", "-")), 2)), NA()) ->  | G33: =IF(ROUND(VALUE(SUBSTITUTE(連結実質赤字比率に係る赤字・黒字の構成分析!H$37,"▲", "-")), 2) >= 0, ABS(ROUND(VALUE(SUBSTITUTE(連結実質赤字比率に係る赤字・黒字の構成分析!H$37,"▲", "-")), 2)), NA()) -> 1.12 | H33: =IF(ROUND(VALUE(SUBSTITUTE(連結実質赤字比率に係る赤字・黒字の構成分析!I$37,"▲", "-")), 2) < 0, ABS(ROUND(VALUE(SUBSTITUTE(連結実質赤字比率に係る赤字・黒字の構成分析!I$37,"▲", "-")), 2)), NA()) ->  | I33: =IF(ROUND(VALUE(SUBSTITUTE(連結実質赤字比率に係る赤字・黒字の構成分析!I$37,"▲", "-")), 2) >= 0, ABS(ROUND(VALUE(SUBSTITUTE(連結実質赤字比率に係る赤字・黒字の構成分析!I$37,"▲", "-")), 2)), NA()) -> 0.94 | J33: =IF(ROUND(VALUE(SUBSTITUTE(連結実質赤字比率に係る赤字・黒字の構成分析!J$37,"▲", "-")), 2) < 0, ABS(ROUND(VALUE(SUBSTITUTE(連結実質赤字比率に係る赤字・黒字の構成分析!J$37,"▲", "-")), 2)), NA()) ->  | K33: =IF(ROUND(VALUE(SUBSTITUTE(連結実質赤字比率に係る赤字・黒字の構成分析!J$37,"▲", "-")), 2) >= 0, ABS(ROUND(VALUE(SUBSTITUTE(連結実質赤字比率に係る赤字・黒字の構成分析!J$37,"▲", "-")), 2)), NA()) -> 1.26
A34: =IF(連結実質赤字比率に係る赤字・黒字の構成分析!C$36="",NA(),連結実質赤字比率に係る赤字・黒字の構成分析!C$36) -> 下水道事業会計 | B34: =IF(ROUND(VALUE(SUBSTITUTE(連結実質赤字比率に係る赤字・黒字の構成分析!F$36,"▲", "-")), 2) < 0, ABS(ROUND(VALUE(SUBSTITUTE(連結実質赤字比率に係る赤字・黒字の構成分析!F$36,"▲", "-")), 2)), NA()) ->  | C34: =IF(ROUND(VALUE(SUBSTITUTE(連結実質赤字比率に係る赤字・黒字の構成分析!F$36,"▲", "-")), 2) >= 0, ABS(ROUND(VALUE(SUBSTITUTE(連結実質赤字比率に係る赤字・黒字の構成分析!F$36,"▲", "-")), 2)), NA()) -> 0.54 | D34: =IF(ROUND(VALUE(SUBSTITUTE(連結実質赤字比率に係る赤字・黒字の構成分析!G$36,"▲", "-")), 2) < 0, ABS(ROUND(VALUE(SUBSTITUTE(連結実質赤字比率に係る赤字・黒字の構成分析!G$36,"▲", "-")), 2)), NA()) ->  | E34: =IF(ROUND(VALUE(SUBSTITUTE(連結実質赤字比率に係る赤字・黒字の構成分析!G$36,"▲", "-")), 2) >= 0, ABS(ROUND(VALUE(SUBSTITUTE(連結実質赤字比率に係る赤字・黒字の構成分析!G$36,"▲", "-")), 2)), NA()) -> 0.57 | F34: =IF(ROUND(VALUE(SUBSTITUTE(連結実質赤字比率に係る赤字・黒字の構成分析!H$36,"▲", "-")), 2) < 0, ABS(ROUND(VALUE(SUBSTITUTE(連結実質赤字比率に係る赤字・黒字の構成分析!H$36,"▲", "-")), 2)), NA()) ->  | G34: =IF(ROUND(VALUE(SUBSTITUTE(連結実質赤字比率に係る赤字・黒字の構成分析!H$36,"▲", "-")), 2) >= 0, ABS(ROUND(VALUE(SUBSTITUTE(連結実質赤字比率に係る赤字・黒字の構成分析!H$36,"▲", "-")), 2)), NA()) -> 0.31 | H34: =IF(ROUND(VALUE(SUBSTITUTE(連結実質赤字比率に係る赤字・黒字の構成分析!I$36,"▲", "-")), 2) < 0, ABS(ROUND(VALUE(SUBSTITUTE(連結実質赤字比率に係る赤字・黒字の構成分析!I$36,"▲", "-")), 2)), NA()) -> 0.08 | I34: =IF(ROUND(VALUE(SUBSTITUTE(連結実質赤字比率に係る赤字・黒字の構成分析!I$36,"▲", "-")), 2) >= 0, ABS(ROUND(VALUE(SUBSTITUTE(連結実質赤字比率に係る赤字・黒字の構成分析!I$36,"▲", "-")), 2)), NA()) ->  | J34: =IF(ROUND(VALUE(SUBSTITUTE(連結実質赤字比率に係る赤字・黒字の構成分析!J$36,"▲", "-")), 2) < 0, ABS(ROUND(VALUE(SUBSTITUTE(連結実質赤字比率に係る赤字・黒字の構成分析!J$36,"▲", "-")), 2)), NA()) ->  | K34: =IF(ROUND(VALUE(SUBSTITUTE(連結実質赤字比率に係る赤字・黒字の構成分析!J$36,"▲", "-")), 2) >= 0, ABS(ROUND(VALUE(SUBSTITUTE(連結実質赤字比率に係る赤字・黒字の構成分析!J$36,"▲", "-")), 2)), NA()) -> 5.94
A35: =IF(連結実質赤字比率に係る赤字・黒字の構成分析!C$35="",NA(),連結実質赤字比率に係る赤字・黒字の構成分析!C$35) -> 水道事業会計 | B35: =IF(ROUND(VALUE(SUBSTITUTE(連結実質赤字比率に係る赤字・黒字の構成分析!F$35,"▲", "-")), 2) < 0, ABS(ROUND(VALUE(SUBSTITUTE(連結実質赤字比率に係る赤字・黒字の構成分析!F$35,"▲", "-")), 2)), NA()) ->  | C35: =IF(ROUND(VALUE(SUBSTITUTE(連結実質赤字比率に係る赤字・黒字の構成分析!F$35,"▲", "-")), 2) >= 0, ABS(ROUND(VALUE(SUBSTITUTE(連結実質赤字比率に係る赤字・黒字の構成分析!F$35,"▲", "-")), 2)), NA()) -> 8.12 | D35: =IF(ROUND(VALUE(SUBSTITUTE(連結実質赤字比率に係る赤字・黒字の構成分析!G$35,"▲", "-")), 2) < 0, ABS(ROUND(VALUE(SUBSTITUTE(連結実質赤字比率に係る赤字・黒字の構成分析!G$35,"▲", "-")), 2)), NA()) ->  | E35: =IF(ROUND(VALUE(SUBSTITUTE(連結実質赤字比率に係る赤字・黒字の構成分析!G$35,"▲", "-")), 2) >= 0, ABS(ROUND(VALUE(SUBSTITUTE(連結実質赤字比率に係る赤字・黒字の構成分析!G$35,"▲", "-")), 2)), NA()) -> 8.17 | F35: =IF(ROUND(VALUE(SUBSTITUTE(連結実質赤字比率に係る赤字・黒字の構成分析!H$35,"▲", "-")), 2) < 0, ABS(ROUND(VALUE(SUBSTITUTE(連結実質赤字比率に係る赤字・黒字の構成分析!H$35,"▲", "-")), 2)), NA()) ->  | G35: =IF(ROUND(VALUE(SUBSTITUTE(連結実質赤字比率に係る赤字・黒字の構成分析!H$35,"▲", "-")), 2) >= 0, ABS(ROUND(VALUE(SUBSTITUTE(連結実質赤字比率に係る赤字・黒字の構成分析!H$35,"▲", "-")), 2)), NA()) -> 7.98 | H35: =IF(ROUND(VALUE(SUBSTITUTE(連結実質赤字比率に係る赤字・黒字の構成分析!I$35,"▲", "-")), 2) < 0, ABS(ROUND(VALUE(SUBSTITUTE(連結実質赤字比率に係る赤字・黒字の構成分析!I$35,"▲", "-")), 2)), NA()) ->  | I35: =IF(ROUND(VALUE(SUBSTITUTE(連結実質赤字比率に係る赤字・黒字の構成分析!I$35,"▲", "-")), 2) >= 0, ABS(ROUND(VALUE(SUBSTITUTE(連結実質赤字比率に係る赤字・黒字の構成分析!I$35,"▲", "-")), 2)), NA()) -> 8.74 | J35: =IF(ROUND(VALUE(SUBSTITUTE(連結実質赤字比率に係る赤字・黒字の構成分析!J$35,"▲", "-")), 2) < 0, ABS(ROUND(VALUE(SUBSTITUTE(連結実質赤字比率に係る赤字・黒字の構成分析!J$35,"▲", "-")), 2)), NA()) ->  | K35: =IF(ROUND(VALUE(SUBSTITUTE(連結実質赤字比率に係る赤字・黒字の構成分析!J$35,"▲", "-")), 2) >= 0, ABS(ROUND(VALUE(SUBSTITUTE(連結実質赤字比率に係る赤字・黒字の構成分析!J$35,"▲", "-")), 2)), NA()) -> 8.14
A36: =IF(連結実質赤字比率に係る赤字・黒字の構成分析!C$34="",NA(),連結実質赤字比率に係る赤字・黒字の構成分析!C$34) -> 一般会計 | B36: =IF(ROUND(VALUE(SUBSTITUTE(連結実質赤字比率に係る赤字・黒字の構成分析!F$34,"▲", "-")), 2) < 0, ABS(ROUND(VALUE(SUBSTITUTE(連結実質赤字比率に係る赤字・黒字の構成分析!F$34,"▲", "-")), 2)), NA()) ->  | C36: =IF(ROUND(VALUE(SUBSTITUTE(連結実質赤字比率に係る赤字・黒字の構成分析!F$34,"▲", "-")), 2) >= 0, ABS(ROUND(VALUE(SUBSTITUTE(連結実質赤字比率に係る赤字・黒字の構成分析!F$34,"▲", "-")), 2)), NA()) -> 9.54 | D36: =IF(ROUND(VALUE(SUBSTITUTE(連結実質赤字比率に係る赤字・黒字の構成分析!G$34,"▲", "-")), 2) < 0, ABS(ROUND(VALUE(SUBSTITUTE(連結実質赤字比率に係る赤字・黒字の構成分析!G$34,"▲", "-")), 2)), NA()) ->  | E36: =IF(ROUND(VALUE(SUBSTITUTE(連結実質赤字比率に係る赤字・黒字の構成分析!G$34,"▲", "-")), 2) >= 0, ABS(ROUND(VALUE(SUBSTITUTE(連結実質赤字比率に係る赤字・黒字の構成分析!G$34,"▲", "-")), 2)), NA()) -> 9.72 | F36: =IF(ROUND(VALUE(SUBSTITUTE(連結実質赤字比率に係る赤字・黒字の構成分析!H$34,"▲", "-")), 2) < 0, ABS(ROUND(VALUE(SUBSTITUTE(連結実質赤字比率に係る赤字・黒字の構成分析!H$34,"▲", "-")), 2)), NA()) ->  | G36: =IF(ROUND(VALUE(SUBSTITUTE(連結実質赤字比率に係る赤字・黒字の構成分析!H$34,"▲", "-")), 2) >= 0, ABS(ROUND(VALUE(SUBSTITUTE(連結実質赤字比率に係る赤字・黒字の構成分析!H$34,"▲", "-")), 2)), NA()) -> 9.88 | H36: =IF(ROUND(VALUE(SUBSTITUTE(連結実質赤字比率に係る赤字・黒字の構成分析!I$34,"▲", "-")), 2) < 0, ABS(ROUND(VALUE(SUBSTITUTE(連結実質赤字比率に係る赤字・黒字の構成分析!I$34,"▲", "-")), 2)), NA()) ->  | I36: =IF(ROUND(VALUE(SUBSTITUTE(連結実質赤字比率に係る赤字・黒字の構成分析!I$34,"▲", "-")), 2) >= 0, ABS(ROUND(VALUE(SUBSTITUTE(連結実質赤字比率に係る赤字・黒字の構成分析!I$34,"▲", "-")), 2)), NA()) -> 8.65 | J36: =IF(ROUND(VALUE(SUBSTITUTE(連結実質赤字比率に係る赤字・黒字の構成分析!J$34,"▲", "-")), 2) < 0, ABS(ROUND(VALUE(SUBSTITUTE(連結実質赤字比率に係る赤字・黒字の構成分析!J$34,"▲", "-")), 2)), NA()) ->  | K36: =IF(ROUND(VALUE(SUBSTITUTE(連結実質赤字比率に係る赤字・黒字の構成分析!J$34,"▲", "-")), 2) >= 0, ABS(ROUND(VALUE(SUBSTITUTE(連結実質赤字比率に係る赤字・黒字の構成分析!J$34,"▲", "-")), 2)), NA()) -> 13.08
A39: 実質公債費比率（分子）の構造
B40: ='実質公債費比率（分子）の構造'!K$44 -> H28 | E40: ='実質公債費比率（分子）の構造'!L$44 -> H29 | H40: ='実質公債費比率（分子）の構造'!M$44 -> H30 | K40: ='実質公債費比率（分子）の構造'!N$44 -> R01 | N40: ='実質公債費比率（分子）の構造'!O$44 -> R02
B41: 元利償還金等 | D41: 算入公債費等 | E41: 元利償還金等 | G41: 算入公債費等 | H41: 元利償還金等 | J41: 算入公債費等 | K41: 元利償還金等 | M41: 算入公債費等 | N41: 元利償還金等 | P41: 算入公債費等
A42: 算入公債費等 | D42: ='実質公債費比率（分子）の構造'!K$52 -> 3138 | G42: ='実質公債費比率（分子）の構造'!L$52 -> 3157 | J42: ='実質公債費比率（分子）の構造'!M$52 -> 3002 | M42: ='実質公債費比率（分子）の構造'!N$52 -> 2946 | P42: ='実質公債費比率（分子）の構造'!O$52 -> 2801
A43: 一時借入金の利子 | B43: ='実質公債費比率（分子）の構造'!K$51 -> - | E43: ='実質公債費比率（分子）の構造'!L$51 -> - | H43: ='実質公債費比率（分子）の構造'!M$51 -> - | K43: ='実質公債費比率（分子）の構造'!N$51 -> - | N43: ='実質公債費比率（分子）の構造'!O$51 -> -
A44: 債務負担行為に基づく支出額 | B44: ='実質公債費比率（分子）の構造'!K$50 -> 895 | E44: ='実質公債費比率（分子）の構造'!L$50 -> 867 | H44: ='実質公債費比率（分子）の構造'!M$50 -> 865 | K44: ='実質公債費比率（分子）の構造'!N$50 -> 830 | N44: ='実質公債費比率（分子）の構造'!O$50 -> 770
A45: 組合等が起こした地方債の元利償還金に対する負担金等 | B45: ='実質公債費比率（分子）の構造'!K$49 -> 269 | E45: ='実質公債費比率（分子）の構造'!L$49 -> 233 | H45: ='実質公債費比率（分子）の構造'!M$49 -> 223 | K45: ='実質公債費比率（分子）の構造'!N$49 -> 256 | N45: ='実質公債費比率（分子）の構造'!O$49 -> 300
A46: 公営企業債の元利償還金に対する繰入金 | B46: ='実質公債費比率（分子）の構造'!K$48 -> 201 | E46: ='実質公債費比率（分子）の構造'!L$48 -> 194 | H46: ='実質公債費比率（分子）の構造'!M$48 -> 173 | K46: ='実質公債費比率（分子）の構造'!N$48 -> 161 | N46: ='実質公債費比率（分子）の構造'!O$48 -> 56
A47: 満期一括償還地方債に係る年度割相当額 | B47: ='実質公債費比率（分子）の構造'!K$47 -> - | E47: ='実質公債費比率（分子）の構造'!L$47 -> - | H47: ='実質公債費比率（分子）の構造'!M$47 -> - | K47: ='実質公債費比率（分子）の構造'!N$47 -> - | N47: ='実質公債費比率（分子）の構造'!O$47 -> -
A48: 減債基金積立不足算定額 | B48: ='実質公債費比率（分子）の構造'!K$46 -> - | E48: ='実質公債費比率（分子）の構造'!L$46 -> - | H48: ='実質公債費比率（分子）の構造'!M$46 -> - | K48: ='実質公債費比率（分子）の構造'!N$46 -> - | N48: ='実質公債費比率（分子）の構造'!O$46 -> -
A49: 元利償還金 | B49: ='実質公債費比率（分子）の構造'!K$45 -> 2390 | E49: ='実質公債費比率（分子）の構造'!L$45 -> 2134 | H49: ='実質公債費比率（分子）の構造'!M$45 -> 1928 | K49: ='実質公債費比率（分子）の構造'!N$45 -> 1707 | N49: ='実質公債費比率（分子）の構造'!O$45 -> 1595
A50: 実質公債費比率の分子 | B50: =NA() ->  | C50: =IF(ISNUMBER('実質公債費比率（分子）の構造'!K$53),'実質公債費比率（分子）の構造'!K$53,NA()) -> 617 | D50: =NA() ->  | E50: =NA() ->  | F50: =IF(ISNUMBER('実質公債費比率（分子）の構造'!L$53),'実質公債費比率（分子）の構造'!L$53,NA()) -> 271 | G50: =NA() ->  | H50: =NA() ->  | I50: =IF(ISNUMBER('実質公債費比率（分子）の構造'!M$53),'実質公債費比率（分子）の構造'!M$53,NA()) -> 187 | J50: =NA() ->  | K50: =NA() ->  | L50: =IF(ISNUMBER('実質公債費比率（分子）の構造'!N$53),'実質公債費比率（分子）の構造'!N$53,NA()) -> 8 | M50: =NA() ->  | N50: =NA() ->  | O50: =IF(ISNUMBER('実質公債費比率（分子）の構造'!O$53),'実質公債費比率（分子）の構造'!O$53,NA()) -> -80 | P50: =NA() -> 
A53: 将来負担比率（分子）の構造
B54: ='将来負担比率（分子）の構造'!I$40 -> H28 | E54: ='将来負担比率（分子）の構造'!J$40 -> H29 | H54: ='将来負担比率（分子）の構造'!K$40 -> H30 | K54: ='将来負担比率（分子）の構造'!L$40 -> R01 | N54: ='将来負担比率（分子）の構造'!M$40 -> R02
B55: 将来負担額 | D55: 充当可能財源等 | E55: 将来負担額 | G55: 充当可能財源等 | H55: 将来負担額 | J55: 充当可能財源等 | K55: 将来負担額 | M55: 充当可能財源等 | N55: 将来負担額 | P55: 充当可能財源等
A56: 基準財政需要額算入見込額 | D56: ='将来負担比率（分子）の構造'!I$52 -> 15835 | G56: ='将来負担比率（分子）の構造'!J$52 -> 14610 | J56: ='将来負担比率（分子）の構造'!K$52 -> 13393 | M56: ='将来負担比率（分子）の構造'!L$52 -> 12338 | P56: ='将来負担比率（分子）の構造'!M$52 -> 11488
A57: 充当可能特定歳入 | D57: ='将来負担比率（分子）の構造'!I$51 -> 5953 | G57: ='将来負担比率（分子）の構造'!J$51 -> 6230 | J57: ='将来負担比率（分子）の構造'!K$51 -> 5917 | M57: ='将来負担比率（分子）の構造'!L$51 -> 5501 | P57: ='将来負担比率（分子）の構造'!M$51 -> 5794
A58: 充当可能基金 | D58: ='将来負担比率（分子）の構造'!I$50 -> 13390 | G58: ='将来負担比率（分子）の構造'!J$50 -> 15146 | J58: ='将来負担比率（分子）の構造'!K$50 -> 16296 | M58: ='将来負担比率（分子）の構造'!L$50 -> 18175 | P58: ='将来負担比率（分子）の構造'!M$50 -> 17021
A59: 組合等連結実質赤字額負担見込額 | B59: ='将来負担比率（分子）の構造'!I$49 -> - | E59: ='将来負担比率（分子）の構造'!J$49 -> - | H59: ='将来負担比率（分子）の構造'!K$49 -> - | K59: ='将来負担比率（分子）の構造'!L$49 -> - | N59: ='将来負担比率（分子）の構造'!M$49 -> -
A60: 連結実質赤字額 | B60: ='将来負担比率（分子）の構造'!I$48 -> - | E60: ='将来負担比率（分子）の構造'!J$48 -> - | H60: ='将来負担比率（分子）の構造'!K$48 -> - | K60: ='将来負担比率（分子）の構造'!L$48 -> - | N60: ='将来負担比率（分子）の構造'!M$48 -> -
A61: 設立法人等の負債額等負担見込額 | B61: ='将来負担比率（分子）の構造'!I$46 -> - | E61: ='将来負担比率（分子）の構造'!J$46 -> - | H61: ='将来負担比率（分子）の構造'!K$46 -> - | K61: ='将来負担比率（分子）の構造'!L$46 -> - | N61: ='将来負担比率（分子）の構造'!M$46 -> -
A62: 退職手当負担見込額 | B62: ='将来負担比率（分子）の構造'!I$45 -> 2860 | E62: ='将来負担比率（分子）の構造'!J$45 -> 3093 | H62: ='将来負担比率（分子）の構造'!K$45 -> 3186 | K62: ='将来負担比率（分子）の構造'!L$45 -> 3277 | N62: ='将来負担比率（分子）の構造'!M$45 -> 3422
A63: 組合等負担等見込額 | B63: ='将来負担比率（分子）の構造'!I$44 -> 1984 | E63: ='将来負担比率（分子）の構造'!J$44 -> 2442 | H63: ='将来負担比率（分子）の構造'!K$44 -> 2619 | K63: ='将来負担比率（分子）の構造'!L$44 -> 2127 | N63: ='将来負担比率（分子）の構造'!M$44 -> 2312
A64: 公営企業債等繰入見込額 | B64: ='将来負担比率（分子）の構造'!I$43 -> 1988 | E64: ='将来負担比率（分子）の構造'!J$43 -> 1852 | H64: ='将来負担比率（分子）の構造'!K$43 -> 1267 | K64: ='将来負担比率（分子）の構造'!L$43 -> 1691 | N64: ='将来負担比率（分子）の構造'!M$43 -> 1262
A65: 債務負担行為に基づく支出予定額 | B65: ='将来負担比率（分子）の構造'!I$42 -> 8358 | E65: ='将来負担比率（分子）の構造'!J$42 -> 7490 | H65: ='将来負担比率（分子）の構造'!K$42 -> 6624 | K65: ='将来負担比率（分子）の構造'!L$42 -> 5547 | N65: ='将来負担比率（分子）の構造'!M$42 -> 5175
A66: 一般会計等に係る地方債の現在高 | B66: ='将来負担比率（分子）の構造'!I$41 -> 17629 | E66: ='将来負担比率（分子）の構造'!J$41 -> 16076 | H66: ='将来負担比率（分子）の構造'!K$41 -> 14547 | K66: ='将来負担比率（分子）の構造'!L$41 -> 13462 | N66: ='将来負担比率（分子）の構造'!M$41 -> 13368
A67: 将来負担比率の分子 | B67: =NA() ->  | C67: =IF(ISNUMBER('将来負担比率（分子）の構造'!I$53), IF('将来負担比率（分子）の構造'!I$53 < 0, 0, '将来負担比率（分子）の構造'!I$53), NA()) -> 0 | D67: =NA() ->  | E67: =NA() ->  | F67: =IF(ISNUMBER('将来負担比率（分子）の構造'!J$53), IF('将来負担比率（分子）の構造'!J$53 < 0, 0, '将来負担比率（分子）の構造'!J$53), NA()) -> 0 | G67: =NA() ->  | H67: =NA() ->  | I67: =IF(ISNUMBER('将来負担比率（分子）の構造'!K$53), IF('将来負担比率（分子）の構造'!K$53 < 0, 0, '将来負担比率（分子）の構造'!K$53), NA()) -> 0 | J67: =NA() ->  | K67: =NA() ->  | L67: =IF(ISNUMBER('将来負担比率（分子）の構造'!L$53), IF('将来負担比率（分子）の構造'!L$53 < 0, 0, '将来負担比率（分子）の構造'!L$53), NA()) -> 0 | M67: =NA() ->  | N67: =NA() ->  | O67: =IF(ISNUMBER('将来負担比率（分子）の構造'!M$53), IF('将来負担比率（分子）の構造'!M$53 < 0, 0, '将来負担比率（分子）の構造'!M$53), NA()) -> 0 | P67: =NA() -> 
A70: 基金残高に係る経年分析
B71: =基金残高に係る経年分析!F54 -> H30 | C71: =基金残高に係る経年分析!G54 -> R01 | D71: =基金残高に係る経年分析!H54 -> R02
A72: 財政調整基金 | B72: =基金残高に係る経年分析!F55 -> 9388 | C72: =基金残高に係る経年分析!G55 -> 10512 | D72: =基金残高に係る経年分析!H55 -> 9278
A73: 減債基金 | B73: =基金残高に係る経年分析!F56 -> 135 | C73: =基金残高に係る経年分析!G56 -> 120 | D73: =基金残高に係る経年分析!H56 -> 104
A74: その他特定目的基金 | B74: =基金残高に係る経年分析!F57 -> 6024 | C74: =基金残高に係る経年分析!G57 -> 5741 | D74: =基金残高に係る経年分析!H57 -> 6534
